Workbook

Sheet Instructivo
A1: CRITERIO DE PRIORIZACIÓN DE TRÁMITES ADMINISTRATIVOS
A2: Instructivo
A3: Consideraciones generales
A5: En las hojas “COSTO DE ADMINISTRACIÓN PÚBLICA”y “RESUMEN” para añadir más trámites y que apliquen las fórmulas, se deberá seleccionar la primera fila y copiarla una por cada trámite de la entidad
A7: Todas las hojas tienen columnas de color celeste, en las cuales NO deben ingresar valores ya que contienen fórmulas.
A8: Para la carga en GOB.EC. La institución debe recordar que el peso máximo del archivo es de 2 MB.
A9: Esquema de puntuación
A10: Para priorizar un trámite, se realizará un análisis de criterios básicos y adicionales basado en información que disponen las instituciones sujetas a esta norma técnica. Cada criterio será puntuado según los lineamientos presentes en esta norma.
A11: a) Demanda Anual
A12: Considerará el volumen o frecuencia de las solicitudes que ingresan al año a cada institución para la gestión de un trámite en particular.
A13: La identificación del volumen anual de los trámites se realizará a través de sus registros de transacciones y/o el número de visitas de consulta de información realizadas a través de páginas web institucionales.
A14: Para realizar el registro realice lo siguiente:
A15: 1.- Seleccione la hoja DEMANDA ANUAL
A16: 2.- Ingrese los trámites de la institución registrando el identificador y nombre en las columnas respectivas.
A17: 3.- Para cada trámite debe especificar en la columna DEMANDA ANUAL el volumen o frecuencia anual, de acuerdo a lo mencionado anteriormente.
A18: 4.- Una vez terminado el llenado solicitado presione el botón PUNTUACIÓN, se ordenara de menor a mayor.
A19: 5.- Usted visualizará el ordenamiento de los trámites ingresados de acuerdo al número de volumen o frecuencia anual.
A20: 6.- Así mismo, usted visualizará el puntaje obtenido en la columna PUNTUACIÓN de acuerdo al grupo obtenido por cada trámite de acuerdo al número de volumen o frecuencia anual cosiderando lo siguiente: ** Primer grupo (trámites con menor demanda no incluye los trámites con demanda 0 ) = 3 ** Segundo grupo (trámites con demanda intermedia) = 6 ** Tercer grupo (trámites con mayor demanda) = 10
A21: Cada vez que requiera actualizar el puntaje presionando el botón puntuación, debe verificar que la celda de la columna puntaje se encuentren vacías, es decir, se debe borrar cualquier valor de puntaje obtenido previamente.
A22: b) Volumen de quejas asociadas a un trámite:
A23: Considerará la cantidad de quejas recibidas en relación a un trámite durante un año. Estas quejas deberán estar documentadas en medios físicos y/o digitales.
A24: Para determinar la puntuación, se colocará en una tabla todos los trámites con sus correspondientes quejas ordenándose de menor a mayor. Se dividirá en 2 partes en los que cada grupo contenga la misma cantidad de trámites.
A25: Para realizar el registro realice lo siguiente:
A26: 1.- Seleccione la hoja VOLUMEN DE QUEJAS
A27: 2.- Ingrese los trámites de la institución registrando el identificador y nombre en las columnas respectivas. Si usted requiere de acuerdo al número de trámites copie filas adicionales que estén dentro del cuadro
A28: 3.- Para cada trámite debe especificar en la columna VOLUMEN QUEJAS el número de quejas anual, de acuerdo a lo mencionado anteriormente.
A29: 4.- Una vez terminado el llenado solicitado presione el botón PUNTUACIÓN.
A30: 5.- Usted visualizará el ordenamiento de los trámites ingresados de acuerdo al número de volumen o frecuencia anual.
A31: 6.- Así mismo, usted visualizará el puntaje obtenido en la columna PUNTUACIÓN de acuerdo al grupo obtenido por cada trámite de acuerdo al número de volumen o frecuencia anual cosiderando lo siguiente: La puntuación se basará en los siguientes grupos: ** Primer grupo (trámites con menor cantidad de quejas, no incluye los trámites con queja 0 ) = 4 ** Segundo grupo (trámites con mayor porcentaje de quejas) = 10
A32: El valor del volumen de quejas no debe ser superior al valor del volumen de la demana, no le permitirá registrar un valor.
A33: c) Costo para la administración pública:
A34: En cada trámite, basado en un caso estándar, se deberá estimar el costo incurrido en el costo de personal y recursos necesarios para su atención desde que el administrado entregó todos los requisitos hasta que la institución entregue el producto, respuesta o servicio requerido en el trámite. Se considerará:
A35: • Costo de personal:
A36: Costo del personal para atender el trámite, se excluyen actividades realizadas automáticamente o que dependen del administrado. El tiempo deberá considerar únicamente el tiempo efectivo de trabajo del personal, no debe considerar el tiempo de espera o de movimiento.
A37: • Costo de recursos:
A38: Se deberá considerar el costo directo en el que la institución debe incurrir para atender un trámite. Se debe considerar los insumos o materia prima necesaria u cualquier otro que la institución considere pertinente.
A39: Para realizar el registro realice lo siguiente:
A40: 1.- Seleccione la hoja COSTO ADMINISTRACIÓN PÚBLICA
A41: 2.- Ingrese los trámites de la institución registrando el identificador y nombre en las columnas respectivas. Si usted requiere de acuerdo al número de trámites copie filas adicionales que estén dentro del cuadro
A42: 3.- Para calcular el tiempo de las actividades, utilizar la hoja AUXILIAR COSTO ADMINISTRACIÓN donde deberá listar todas las actividades que realiza la institución en un caso estándar y asignar el tiempo mínimo que toma cada actvidad (en horas). El tiempo total de las actividades, deberá ingresar en la correspondiente celda de la hoja COSTO ADMINISTRACIÓN PÚBLICA
A43: 4.- En función de la información registrada en el paso 3, la matriz entregará el costo del personal
A44: 5.- Completar la columna "Costo recursos", en la cual ingresará el costo directo en el que incurre la institución para entregar el trámite. En este valor se considerarán los valores correspondientes a insumos y/o materia prima mínimos que se invierten por cada trámite (no se considera mano de obra)
A45: 6.- La columna "Costo para la adm. pública" mostrará el costto de este criterio para cada trámite
A46: 7,- Para que la fórmula funcione debe arrastrar hacia abajo al último de los támites ingresados, no copiar
A47: 7.- Una vez que disponga del Costo para la administración pública, presionar el botón "GENERAR".
A48: 8. Visualizar la hoja “RESUMEN DE COSTO AP” en la que va a encontrar copiada las celdas necesarias para el ordenamiento y puntuación de las mismas al presionar el botón “PUNTUACIÓN”
A50: d) Tiempo de respuesta:
A51: Considerará los tiempos que a las instituciones les toma dar respuesta a un trámite desde que reciben la solicitud del administrado hasta la finalización del mismo. Para la definición del tiempo se considerará un caso estándar.
A52: Para determinar la puntuación, se colocará en una tabla todos los trámites con el tiempo de respuesta, ordenándose de menor a mayor. Se dividirá en 4 grupos, en los que cada uno contenga la misma cantidad de trámites.
A53: Para realizar el registro realice lo siguiente:
A54: 1.- Seleccione la hoja TIEMPO DE RESPUESTA
A55: 2.- Ingrese los trámites de la institución registrando el identificador y nombre en las columnas respectivas. Si usted requiere de acuerdo al número de trámites copie filas adicionales que estén dentro del cuadro
A56: 3.- Para cada trámite debe especificar en la columna TIEMPO RESPUESTA el tiempo, de acuerdo a lo mencionado anteriormente.
A57: 4.- Una vez terminado el llenado solicitado presione el botón PUNTUACIÓN.
A58: 5.- Usted visualizará el ordenamiento de los trámites ingresados de acuerdo al número de volumen o frecuencia anual.
A59: 6.- Así mismo, usted visualizará el puntaje obtenido en la columna PUNTUACIÓN de acuerdo al grupo obtenido por cada trámite de acuerdo al número de volumen o frecuencia anual cosiderando lo siguiente: La puntuación considera lo siguiente: ** Primer grupo (menor o igual a 40 horas laboralres) = 0 ** Segundo grupo mayor 40 horas laboralres) = 30
A60: e) Canal de atención:
A61: Considerará los canales de atención a través de los cuales el administrado puede iniciar el trámite.
A62: Para realizar el registro realice lo siguiente:
A63: 1.- Seleccione la hoja CANAL ATENCIÓN
A64: 2.- Ingrese los trámites de la institución registrando el identificador y nombre en las columnas respectivas. Si usted requiere de acuerdo al número de trámites copie filas adicionales que estén dentro del cuadro
A65: 3.- Para cada trámite debe seleccionar el canal de atención del trámite en la columna CANAL ATENCIÓN, que pueden ser: El trámite se puede completar totalmente en línea: Se considera trámite totalmente en línea cuando el administrado no requiere realizar ninguna interacción presencial con la institución = 0 El trámite no se puede completar totalmente en línea: Se considera este caso, cuando el trámite incluye al menos una actividad, incluido mecanismos de pago, en la que el administrado deba acudir presencialmente a la institución, para la realización de dicho trámite. Los trámites presenciales se consideran dentro de esta categoría = 10
A66: 4.- De acuerdo a la selección usted obtendrá la puntuación del trámite que se visualizará en la columna PUNTUACIÓN.
A68: f) Resumen
A69: En esta hoja deberá consolidar todas las puntuaciones obtenidas para cada trámite en los criterios a) hasta e). Adicionalmente deberá analizar los criterios adicionales que dispone la norma técnica, para estos últimos solamente deberá seleccionar en la celda correspondiente y la matriz asignará la puntuación adicional. Los criterios que deberá considerar son: - NECESIDADES CIUDADANAS: Si la institución ha implementado mecanismos para identificar necesidades ciudadanas respecto al trámite, seleccionar "SI", caso contrario, seleccionar "NO" - SUSCEPTIBILIDAD A CORRUPCIÓN: Si la institución dispone de información documentada sobre presuntos actos de corrupción, seleccionar "SI", caso contrario, seleccionar "NO" - VOLUMEN DE DEVOLUCIONES: Si la institución posee documentación sobre devoluciones del trámite en una cantidad significativa, seleccionar "SI", caso contrario, seleccionar "NO" Para que funcione la lista depelgable debe arrastrar la lista y la puntuación hacia abajo al último de los támites ingresados, no copiar
A70: En la columna puntaje total se realizará la sumatoria de los valores de los criterios básicos y adicionales. Este valor deberá registrarse en la plataforma GOB.EC

Sheet DEMANDA ANUAL
A1: PRIORIZACIÓN DE TRÁMITES ADMINISTRATIVOS
A2: DEMANDA ANUAL
A4: IDENTIFICADOR | B4: TRÁMITE | C4: DEMANDA ANUAL | D4: PUNTAJE
A5: MT-021-01-01 | B5: Aprobación de planos para la construcción, habilitación de fábricas y/o campamentos | C5: 0 | D5: 0
A6: MT-048-01-05 | B6: Suscripción de actas transaccionales para instituciones privadas | C6: 0 | D6: 0
A7: MT-045-03-04 | B7: Aprobación de disolución de organizaciones sociales, fundaciones y microempresas asociativas | C7: 1 | D7: 3
A8: MT-045-01-02 | B8: Registro de la marginación de organizaciones laborales | C8: 1 | D8: 3
A9: MT-047-01-02 | B9: Resolución del pliego de peticiones con sentencia de segunda instancia | C9: 2 | D9: 3
A10: MT-045-02-07 | B10: Aprobación de disolución voluntaria de personería jurídica de organizaciones artesanales | C10: 4 | D10: 3
A11: MT-053-02-01 | B11: Legalización de documentos FEDESOMEC previo al inicio de cursos | C11: 4 | D11: 3
A12: MT-045-02-01 | B12: Registro de ingreso, retiro o exclusión de socios de las organizaciones artesanales | C12: 6 | D12: 3
A13: MT-046-01-02 | B13: Rehabilitación de personas con impedimento laboral en el servicio público a causa de retiro con compensación por retiro voluntario, venta de renuncia o figuras similares | C13: 6 | D13: 3
A14: MRL-015-01-03 | B14: Refrendación de títulos nuevos y canje de la Federación Ecuatoriana de Operadores y Mecánicos de Equipo Caminero (FEDESOMEC) | C14: 12 | D14: 3
A15: MT-048-03-02 | B15: Resolución de reclamación colectiva presentada por instituciones privadas por la falta de negociación del contrato colectivo | C15: 13 | D15: 3
A16: MT-046-01-08 | B16: Rehabilitación de personas con impedimento laboral en el servicio público a causa de interdicción judicial | C16: 17 | D16: 3
A17: MT-046-01-06 | B17: Rehabilitación de personas con impedimento laboral en el servicio público a causa de compra de renuncia con indemnización. | C17: 21 | D17: 3
A18: MT-046-01-01 | B18: Rehabilitación de impedidos para laborar en el servicio público por indemnización por supresión de puestos | C18: 30 | D18: 3
A19: MT-045-02-04 | B19: Registro de directivas de las organizaciones artesanales | C19: 32 | D19: 3
A20: MT-048-01-06 | B20: Suscripción de actas transaccionales para instituciones públicas para trabajadores bajo Código del Trabajo | C20: 33 | D20: 3
A21: MT-016-02-02 | B21: Aprobación de extensión de horarios de trabajo (Suplementarias y Extraordinarias) | C21: 34 | D21: 3
A22: MT-045-01-07 | B22: Aprobación de reformas a estatutos de organizaciones laborales | C22: 37 | D22: 3
A23: MT-045-03-05 | B23: Aprobación de reformas al estatuto de organizaciones sociales, fundaciones y microempresas asociativas | C23: 39 | D23: 3
A24: MT-048-03-01 | B24: Resolución de reclamación colectiva presentada por instituciones públicas por la falta de negociación del contrato colectivo bajo Código de Trabajo | C24: 41 | D24: 3
A25: MRL-015-01-02 | B25: Refrendación de títulos nuevos y canje de Centros de Formación Artesanal y Organizaciones Artesanales | C25: 42 | D25: 3
A26: MT-045-01-03 | B26: Registro de inclusión y/o exclusión de socios de organizaciones laborales | C26: 42 | D26: 3
A27: MT-045-02-05 | B27: Aprobación de estatutos y concesión de personería jurídica de organizaciones artesanales | C27: 44 | D27: 3
A28: MT-045-01-08 | B28: Aprobación de estatutos y personería jurídica en organizaciones laborales | C28: 44 | D28: 3
A29: MT-048-01-03 | B29: Suscripción de contratos colectivos para instituciones privadas | C29: 45 | D29: 3
A30: MT-045-02-06 | B30: Aprobación de reformas total y parcial de estatutos de organizaciones artesanales | C30: 46 | D30: 3
A31: MT-055-01-01 | B31: Aprobación de unificación de utilidades para empleadores del sector privado | C31: 56 | D31: 3
A32: MT-053-01-06 | B32: Legalización de documentos previo a la titulación artesanal bajo la modalidad propios derechos y convalidación profesional | C32: 61 | D32: 6
A33: MT-046-01-03 | B33: Rehabilitación de impedidos para laborar en el servicio público por destitución | C33: 68 | D33: 6
A34: MT-053-01-05 | B34: Legalización de documentos previo a la titulación artesanal bajo la modalidad practica profesional | C34: 104 | D34: 6
A35: MT-048-01-04 | B35: Suscripción de contrato colectivo para instituciones públicas para trabajadores bajo Código del Trabajo | C35: 139 | D35: 6
A36: MT-045-03-02 | B36: Registro de inclusión y/o exclusión de miembros en organizaciones sociales, fundaciones y microempresas asociativas | C36: 207 | D36: 6
A37: MT-045-03-06 | B37: Aprobación del estatuto y otorgamiento de la personalidad jurídica de organizaciones sociales, fundaciones y microempresas asociativas | C37: 217 | D37: 6
A38: MT-001-08-01 | B38: Emisión de copias certificadas de actos administrativos y normativos emitidos por el Ministerio del Trabajo | C38: 325 | D38: 6
A39: MT-045-01-01 | B39: Registro de directivas de organizaciones laborales | C39: 357 | D39: 6
A40: MT-016-02-01 | B40: Aprobación de horarios especiales de trabajo de empresas o instituciones bajo Código del Trabajo | C40: 427 | D40: 6
A41: MRL-008-02-01 | B41: Terminación de relación laboral a petición del empleador con visto bueno con suspensión de relación laboral | C41: 699 | D41: 6
A42: MT-047-01-01 | B42: Resolución del pliego de peticiones con sentencia de primera instancia | C42: 733 | D42: 6
A43: MT-045-03-01 | B43: Registro de directivas para organizaciones sociales, fundaciones y microempresas asociativas | C43: 771 | D43: 6
A44: MRL-005-01-01 | B44: Audiencia de diálogo social en la solución de conflictos colectivos | C44: 863 | D44: 6
A45: MT-034-10-01 | B45: Cálculo del valor correspondiente a la jubilación patronal para trabajadores de código de trabajo en el sector público | C45: 1009 | D45: 6
A46: MRL-008-02-03 | B46: Terminación de relación laboral a petición del empleado con visto bueno | C46: 1056 | D46: 6
A47: MT-049-04-02 | B47: Asistencia en el proceso integral de preselección de personal para instituciones públicas y empresas privadas a través del portal Red Socio Empleo | C47: 1145 | D47: 6
A48: MRL-008-02-02 | B48: Terminación de relación laboral a petición del empleador con visto bueno sin suspensión de relación laboral | C48: 1990 | D48: 6
A49: MT-040-01-01 | B49: Autorización laboral para extranjeros para trabajar en el sector público. | C49: 2205 | D49: 6
A50: MT-030-03-01 | B50: Atención de denuncias laborables en el sector público | C50: 2819 | D50: 6
A51: MT-034-10-02 | B51: Cálculo del valor correspondiente a la jubilación patronal para trabajadores del servicio privado | C51: 3026 | D51: 6
A52: MT-005-02-01 | B52: Audiencia de mediación voluntaria para la solución de conflictos individuales de trabajo | C52: 3119 | D52: 6
A53: MRL-012-01-01 | B53: Aprobación de reglamentos internos de trabajo | C53: 5104 | D53: 6
A54: MT-054-01-01 | B54: Recuperación de claves y modificación de correo electrónico en el Sistema Único de Trabajo | C54: 6635 | D54: 6
A55: MT-021-04-02 | B55: Registro de la Planificación de Capacitación del programa de Prevención de Riesgos Psicosociales | C55: 8340 | D55: 6
A56: MT-021-01-03 | B56: Registro de Informe anual de actividades del comité paritario | C56: 9189 | D56: 6
A57: MT-021-01-04 | B57: Aprobación de reglamentos de higiene y seguridad en el trabajo | C57: 10269 | D57: 10
A58: MT-046-01-05 | B58: Rehabilitación de personas con impedimento laboral en el servicio público a causa de inhabilidad especial por mora. | C58: 17484 | D58: 10
A59: MT-021-03-02 | B59: Registro de Promoción y Prevención de Salud en el Trabajo | C59: 17489 | D59: 10
A60: MT-049-04-03 | B60: Asistencia en la preselección de personal para instituciones públicas y empresas privadas a través del portal Red Socio Empleo mediante el envío de hojas de vida | C60: 18208 | D60: 10
A61: MT-021-04-01 | B61: Registro de Prevención de Amenazas Naturales y Riesgos Antrópicos | C61: 18411 | D61: 10
A62: N/A | B62: Acceso a la Información Pública del Ministerio de Trabajo | C62: 18614 | D62: 10
A63: MT-049-04-01 | B63: Publicación de ofertas laborales en el portal Red Socio Empleo a través de las cuentas de los empleadores | C63: 21934 | D63: 10
A64: MT-044-04-01 | B64: Registro del pago de multas por sanciones | C64: 23965 | D64: 10
A65: MT-021-01-06 | B65: Registro de programas de prevención de uso y consumo de drogas en espacios laborales y programa de prevención de riesgo psicosocial | C65: 26466 | D65: 10
A66: MT-030-03-02 | B66: Atención de denuncias laborales en el sector privado | C66: 29591 | D66: 10
A67: MT-021-01-02 | B67: Registro de organismos paritarios y sus renovaciones | C67: 30352 | D67: 10
A68: MT-021-01-05 | B68: Registro de la declaración de los riesgos laborales y su plan de acción | C68: 33418 | D68: 10
A69: MT-021-02-03 | B69: Registro de trabajadores capacitados en materia de seguridad y salud en el trabajo. | C69: 34093 | D69: 10
A70: MRL-001-01-08 | B70: Emisión de oficio de validación de no tener impedimento para ejercer cargo público a la fecha | C70: 36750 | D70: 10
A71: MT-021-02-02 | B71: Registro de capacitaciones realizadas en materia de seguridad y salud en el trabajo | C71: 42591 | D71: 10
A72: MT-044-03-11 | B72: Registro del pago de decimotercera y decimocuarta remuneración para el servicio doméstico | C72: 51650 | D72: 10
A73: MT-021-02-01 | B73: Registro de la planificación de capacitaciones en materia de seguridad y salud en el trabajo | C73: 62368 | D73: 10
A74: MT-021-03-01 | B74: Registro de Vigilancia de la Salud | C74: 64992 | D74: 10
A75: MT-044-03-10 | B75: Registro del pago de Participación de Utilidades | C75: 69017 | D75: 10
A76: MRL-001-01-03 | B76: Emisión de certificado de no tener impedimento para ejercer cargo público para extranjeros no residentes | C76: 76537 | D76: 10
A77: MT-044-03-12 | B77: Registro del pago de decimocuarta remuneración | C77: 135939 | D77: 10
A78: MRL-001-01-09 | B78: Emisión de certificado de relación de dependencia laboral con el sector público | C78: 140913 | D78: 10
A79: MT-044-03-06 | B79: Registro del pago de decimotercera remuneración | C79: 143326 | D79: 10
A80: MT-044-05-01 | B80: Registro de datos de trabajador para la vinculación laboral | C80: 478648 | D80: 10
A81: MT-044-05-02 | B81: Registro de actas de finiquito | C81: 726991 | D81: 10
A82: MRL-001-01-01 | B82: Emisión de certificado de no tener impedimento para ejercer cargo público para ecuatorianos y extranjeros residentes | C82: 1129606 | D82: 10
A83: SETEC-014-04-04 | B83: Ampliación por incremento de instructores y/o cambio de coordiador pedagógico bajo las mismas áreas, especialidades, cursos o perfiles | C83: 0 | D83: 0
A84: SETEC-016-01-04 | B84: Emisión de credenciales de capacitador independiente | C84: 0 | D84: 0
A85: SETEC-014-05-09 | B85: Solicitud de la renovación de la calificación de Instituciones de Educación Superior como Operadores de Capacitación por capacitación continua y competencias laborales | C85: 0 | D85: 0
A86: SETEC-015-01-08 | B86: Solicitud de modificación al reconocimiento de organismos evaluadores de la conformidad para brindar servicios de certificación de personas | C86: 0 | D86: 0
A87: SETEC-014-05-08 | B87: Solicitud de renovación de la calificación de Instituciones de Educación Superior como Operadores de Capacitación por competencias laborales | C87: 0 | D87: 0
A88: SETEC-014-05-04 | B88: Solicitud de renovación de la calificación de Instituciones Públicas como Operadores de Capacitación Continua | C88: 0 | D88: 0
A89: SETEC-014-05-05 | B89: Solicitud de renovación de la calificación de Instituciones Públicas como Operadores de Capacitación por competencias laborales | C89: 0 | D89: 0
A90: SETEC-014-05-06 | B90: Solicitud de renovación de la calificación deInstituciones Públicas como Operadores de Capacitación por capacitación continua y competencias laborales | C90: 0 | D90: 0
A91: SETEC-015-01-01 | B91: Reconocimiento de personas naturales como organismos evaluadores de la conformidad para brindar servicios de certificación de personas | C91: 2 | D91: 3
A92: SETEC-014-03-03 | B92: Solicitud de modificación de la calificación de Instituciones de Educación Superior como Operadores de Capacitación | C92: 2 | D92: 3
A93: SETEC-014-05-07 | B93: Solicitud de renovación de la calificación de Instituciones de Educación Superior como Operadores de Capacitación como Operadores de Capacitación Continua | C93: 2 | D93: 3
A94: SETEC-014-04-02 | B94: Ampliación por nuevos cursos e instructores por competencias laborales | C94: 4 | D94: 3
A95: SETEC-014-02-08 | B95: Calificación de Instituciones de Educación Superior como Operadores de Capacitación por competencias laborales | C95: 4 | D95: 3
A96: SETEC-014-02-05 | B96: Calificación de Instituciones Públicas como Operadores de Capacitación por competencias laborales | C96: 4 | D96: 3
A97: SETEC-015-01-06 | B97: Renovación al reconocimiento de organismos evaluadores de la conformidad de Instituciones de Educación Superior para brindar servicios de certificación de personas | C97: 4 | D97: 3
A98: SETEC-015-01-04 | B98: Renovación al reconocimiento de organismos evaluadores de la conformidad de personas naturales para brindar servicios de certificación de personas | C98: 4 | D98: 3
A99: SETEC-014-03-02 | B99: Solicitud de modificación de la calificación de Instituciones Públicas como Operadores de Capacitación | C99: 4 | D99: 3
A100: SETEC-014-05-02 | B100: Solicitud de renovación de la calificación de Personas Naturales, Personas Jurídicas y Empresas Públicas como Operadores de Capacitación por competencias laborales | C100: 4 | D100: 3
A101: SETEC-015-01-02 | B101: Reconocimiento de organismos evaluadores de la conformidad de Instituciones de Educación Superior para brindar servicios de certificación de personas | C101: 6 | D101: 3
A102: SETEC-017-01-02 | B102: Solicitud de auditoría al cumplimiento de los estándares de calificación | C102: 6 | D102: 3
A103: SETEC-017-02-02 | B103: Solicitud de auditoría al cumplimiento del sistema de gestión de certificación de personas | C103: 6 | D103: 3
A104: SETEC-017-01-03 | B104: Quejas y sugerencias sobre la prestacción de servicios de capacitación y certificación por parte de terceros | C104: 8 | D104: 3
A105: SETEC-014-02-02 | B105: Calificación de Personas Naturales, Personas Jurídicas y Empresas Públicas como Operadores de Capacitación por competencias laborales | C105: 12 | D105: 6
A106: SETEC-014-02-04 | B106: Calificación de Instituciones Públicas como Operadores de Capacitación Continua | C106: 18 | D106: 6
A107: SETEC-010-01-02 | B107: Elaborar o actualizar perfiles ocupacionales para capacitación y certificación de personas por competancias laborales | C107: 22 | D107: 6
A108: SETEC-015-01-03 | B108: Reconocimiento de organismos evaluadores de la conformidad de personas jurídicas para brindar servicios de certificación de personas | C108: 26 | D108: 6
A109: SETEC-014-03-01 | B109: Solicitud de modificación de la calificación de Personas Naturales, Personas Jurídicas y Empresas Públicas como Operadores de Capacitación | C109: 26 | D109: 6
A110: SETEC-015-01-05 | B110: Renovación al reconocimiento de organismos evaluadores de la conformidad de personas jurídicas para brindar servicios de certificación de personas | C110: 28 | D110: 6
A111: SETEC-014-02-07 | B111: Calificación de Instituciones de Educación Superior como Operadores de Capacitación Continua | C111: 30 | D111: 6
A112: SETEC-014-05-01 | B112: Solicitud de renovación de la calificación de Personas Naturales, Personas Jurídicas y Empresas Públicas como Operadores de Capacitación de Capacitación Continua | C112: 30 | D112: 6
A113: SETEC-014-02-09 | B113: Calificación de Instituciones de Educación Superior como Operadores de Capacitación por capacitación continua y competencias laborales | C113: 32 | D113: 6
A114: SETEC-016-01-02 | B114: Renovación de la calificación como capacitador independiente | C114: 34 | D114: 6
A115: SETEC-014-05-03 | B115: Solicitud de renovación de la calificación de Personas Naturales, Personas Jurídicas y Empresas Públicas como Operadores de Capacitación por capacitación continua y competencias laborales | C115: 34 | D115: 6
A116: SETEC-014-02-06 | B116: Calificación de Instituciones Públicas como Operadores de Capacitación por capacitación continua y competencias laborales | C116: 40 | D116: 6
A117: SETEC-017-03-02 | B117: Quejas y sugerencias sobre el mal uso de marca SETEC por parte de terceros | C117: 40 | D117: 6
A118: SETEC-010-02-01 | B118: Elaboración de esquemas para la certificación de personas bajo competencias laborales | C118: 42 | D118: 6
A119: SETEC-010-03-01 | B119: Elaborar instrumentos para la certificación de personas bajo competencias laborales | C119: 42 | D119: 6
A120: SETEC-014-04-03 | B120: Ampliación por nuevos cursos e instructores por capacitación continua y competencias laborales | C120: 50 | D120: 10
A121: SETEC-017-02-01 | B121: Solicitud de asesoramiento técnico para el proceso de auditoría al sistema de gestión de certificación de personas | C121: 60 | D121: 10
A122: SETEC-017-01-01 | B122: Solicitud de asesoramiento técnico para el proceso de auditoría al cumplimiento de los estándares de calificación | C122: 64 | D122: 10
A123: SETEC-014-04-01 | B123: Ampliación por nuevos cursos e instructores por capacitación continua | C123: 74 | D123: 10
A124: SETEC-012-01-01 | B124: Asesoramiento metodológico en la elaboración de diseños y estructuras curriculares | C124: 124 | D124: 10
A125: SETEC-016-01-03 | B125: Ampliación de la calificación como capacitador independiente | C125: 132 | D125: 10
A126: SETEC-015-01-09 | B126: Asistencia técnica en el proceso de reconocimiento de organismos certificadores de personas | C126: 142 | D126: 10
A127: SETEC-015-01-07 | B127: Ampliación al reconocimiento de organismos evaluadores de la conformidad para brindar servicios de certificación de personas | C127: 154 | D127: 10
A128: SETEC-014-02-01 | B128: Calificación de Personas Naturales, Personas Jurídicas y Empresas Públicas como Operadores de Capacitación de Capacitación Continua | C128: 164 | D128: 10
A129: SETEC-014-02-03 | B129: Calificación de Personas Naturales, Personas Jurídicas y Empresas Públicas como Operadores de Capacitación continua y competencias laborales | C129: 174 | D129: 10
A130: SETEC-016-01-01 | B130: Calificación como capacitador independiente | C130: 422 | D130: 10
A131: SETEC-017-03-01 | B131: Solicitud de aprobación de productos comunicacionales | C131: 1120 | D131: 10
A132: SETEC-016-01-05 | B132: Asistencia técnica en el proceso de calificación como capacitador independiente | C132: 3680 | D132: 10
A133: SETEC-017-03-04 | B133: Solicitud de sellado de certificados emitidos por los operadores de capacitación de capacitación y organismos evaluadores de la conformidad | C133: 99136 | D133: 10
A134: SETEC-009-02-01 | B134: Consulta de análisis y estudios sobre capacitación y certificación de personas | C134: 755848 | D134: 10

Sheet VOLUMEN DE QUEJAS
A1: PRIORIZACIÓN DE TRÁMITES ADMINISTRATIVOS
A2: VOLUMEN DE QUEJAS
A4: IDENTIFICADOR | B4: TRÁMITE | C4: VOLUMEN DEMANDA | D4: VOLUMEN DE QUEJAS | E4: PORCENTAJE | F4: PUNTUACIÓN
A5: MT-021-01-01 | B5: Aprobación de planos para la construcción, habilitación de fábricas y/o campamentos | C5: 0 | D5: 0 | E5: 0 | F5: 0
A6: MT-048-01-05 | B6: Suscripción de actas transaccionales para instituciones privadas | C6: 0 | D6: 0 | E6: 0 | F6: 0
A7: MT-045-03-04 | B7: Aprobación de disolución de organizaciones sociales, fundaciones y microempresas asociativas | C7: 1 | D7: 0 | E7: 0 | F7: 0
A8: MT-045-01-02 | B8: Registro de la marginación de organizaciones laborales | C8: 1 | D8: 0 | E8: 0 | F8: 0
A9: MT-047-01-02 | B9: Resolución del pliego de peticiones con sentencia de segunda instancia | C9: 2 | D9: 0 | E9: 0 | F9: 0
A10: MT-045-02-07 | B10: Aprobación de disolución voluntaria de personería jurídica de organizaciones artesanales | C10: 4 | D10: 0 | E10: 0 | F10: 0
A11: MT-053-02-01 | B11: Legalización de documentos FEDESOMEC previo al inicio de cursos | C11: 4 | D11: 0 | E11: 0 | F11: 0
A12: MT-045-02-01 | B12: Registro de ingreso, retiro o exclusión de socios de las organizaciones artesanales | C12: 6 | D12: 0 | E12: 0 | F12: 0
A13: MT-046-01-02 | B13: Rehabilitación de personas con impedimento laboral en el servicio público a causa de retiro con compensación por retiro voluntario, venta de renuncia o figuras similares | C13: 6 | D13: 0 | E13: 0 | F13: 0
A14: MRL-015-01-03 | B14: Refrendación de títulos nuevos y canje de la Federación Ecuatoriana de Operadores y Mecánicos de Equipo Caminero (FEDESOMEC) | C14: 12 | D14: 0 | E14: 0 | F14: 0
A15: MT-048-03-02 | B15: Resolución de reclamación colectiva presentada por instituciones privadas por la falta de negociación del contrato colectivo | C15: 13 | D15: 0 | E15: 0 | F15: 0
A16: MT-046-01-08 | B16: Rehabilitación de personas con impedimento laboral en el servicio público a causa de interdicción judicial | C16: 17 | D16: 0 | E16: 0 | F16: 0
A17: MT-046-01-06 | B17: Rehabilitación de personas con impedimento laboral en el servicio público a causa de compra de renuncia con indemnización. | C17: 21 | D17: 0 | E17: 0 | F17: 0
A18: MT-046-01-01 | B18: Rehabilitación de impedidos para laborar en el servicio público por indemnización por supresión de puestos | C18: 30 | D18: 0 | E18: 0 | F18: 0
A19: MT-045-02-04 | B19: Registro de directivas de las organizaciones artesanales | C19: 32 | D19: 0 | E19: 0 | F19: 0
A20: MT-048-01-06 | B20: Suscripción de actas transaccionales para instituciones públicas para trabajadores bajo Código del Trabajo | C20: 33 | D20: 0 | E20: 0 | F20: 0
A21: MT-016-02-02 | B21: Aprobación de extensión de horarios de trabajo (Suplementarias y Extraordinarias) | C21: 34 | D21: 0 | E21: 0 | F21: 0
A22: MT-045-01-07 | B22: Aprobación de reformas a estatutos de organizaciones laborales | C22: 37 | D22: 0 | E22: 0 | F22: 0
A23: MT-045-03-05 | B23: Aprobación de reformas al estatuto de organizaciones sociales, fundaciones y microempresas asociativas | C23: 39 | D23: 0 | E23: 0 | F23: 0
A24: MT-048-03-01 | B24: Resolución de reclamación colectiva presentada por instituciones públicas por la falta de negociación del contrato colectivo bajo Código de Trabajo | C24: 41 | D24: 0 | E24: 0 | F24: 0
A25: MRL-015-01-02 | B25: Refrendación de títulos nuevos y canje de Centros de Formación Artesanal y Organizaciones Artesanales | C25: 42 | D25: 0 | E25: 0 | F25: 0
A26: MT-045-01-03 | B26: Registro de inclusión y/o exclusión de socios de organizaciones laborales | C26: 42 | D26: 0 | E26: 0 | F26: 0
A27: MT-045-02-05 | B27: Aprobación de estatutos y concesión de personería jurídica de organizaciones artesanales | C27: 44 | D27: 0 | E27: 0 | F27: 0
A28: MT-045-01-08 | B28: Aprobación de estatutos y personería jurídica en organizaciones laborales | C28: 44 | D28: 0 | E28: 0 | F28: 0
A29: MT-048-01-03 | B29: Suscripción de contratos colectivos para instituciones privadas | C29: 45 | D29: 0 | E29: 0 | F29: 0
A30: MT-045-02-06 | B30: Aprobación de reformas total y parcial de estatutos de organizaciones artesanales | C30: 46 | D30: 0 | E30: 0 | F30: 0
A31: MT-055-01-01 | B31: Aprobación de unificación de utilidades para empleadores del sector privado | C31: 56 | D31: 0 | E31: 0 | F31: 0
A32: MT-053-01-06 | B32: Legalización de documentos previo a la titulación artesanal bajo la modalidad propios derechos y convalidación profesional | C32: 61 | D32: 0 | E32: 0 | F32: 0
A33: MT-046-01-03 | B33: Rehabilitación de impedidos para laborar en el servicio público por destitución | C33: 68 | D33: 0 | E33: 0 | F33: 0
A34: MT-053-01-05 | B34: Legalización de documentos previo a la titulación artesanal bajo la modalidad practica profesional | C34: 104 | D34: 0 | E34: 0 | F34: 0
A35: MT-048-01-04 | B35: Suscripción de contrato colectivo para instituciones públicas para trabajadores bajo Código del Trabajo | C35: 139 | D35: 0 | E35: 0 | F35: 0
A36: MT-045-03-02 | B36: Registro de inclusión y/o exclusión de miembros en organizaciones sociales, fundaciones y microempresas asociativas | C36: 207 | D36: 0 | E36: 0 | F36: 0
A37: MT-045-03-06 | B37: Aprobación del estatuto y otorgamiento de la personalidad jurídica de organizaciones sociales, fundaciones y microempresas asociativas | C37: 217 | D37: 0 | E37: 0 | F37: 0
A38: MT-001-08-01 | B38: Emisión de copias certificadas de actos administrativos y normativos emitidos por el Ministerio del Trabajo | C38: 325 | D38: 0 | E38: 0 | F38: 0
A39: MT-045-01-01 | B39: Registro de directivas de organizaciones laborales | C39: 357 | D39: 0 | E39: 0 | F39: 0
A40: MT-016-02-01 | B40: Aprobación de horarios especiales de trabajo de empresas o instituciones bajo Código del Trabajo | C40: 427 | D40: 4 | E40: 0.9367681499 | F40: 4
A41: MRL-008-02-01 | B41: Terminación de relación laboral a petición del empleador con visto bueno con suspensión de relación laboral | C41: 699 | D41: 0 | E41: 0 | F41: 0
A42: MT-047-01-01 | B42: Resolución del pliego de peticiones con sentencia de primera instancia | C42: 733 | D42: 0 | E42: 0 | F42: 0
A43: MT-045-03-01 | B43: Registro de directivas para organizaciones sociales, fundaciones y microempresas asociativas | C43: 771 | D43: 0 | E43: 0 | F43: 0
A44: MRL-005-01-01 | B44: Audiencia de diálogo social en la solución de conflictos colectivos | C44: 863 | D44: 0 | E44: 0 | F44: 0
A45: MT-034-10-01 | B45: Cálculo del valor correspondiente a la jubilación patronal para trabajadores de código de trabajo en el sector público | C45: 1009 | D45: 0 | E45: 0 | F45: 0
A46: MRL-008-02-03 | B46: Terminación de relación laboral a petición del empleado con visto bueno | C46: 1056 | D46: 0 | E46: 0 | F46: 0
A47: MT-049-04-02 | B47: Asistencia en el proceso integral de preselección de personal para instituciones públicas y empresas privadas a través del portal Red Socio Empleo | C47: 1145 | D47: 0 | E47: 0 | F47: 0
A48: MRL-008-02-02 | B48: Terminación de relación laboral a petición del empleador con visto bueno sin suspensión de relación laboral | C48: 1990 | D48: 0 | E48: 0 | F48: 0
A49: MT-040-01-01 | B49: Autorización laboral para extranjeros para trabajar en el sector público. | C49: 2205 | D49: 0 | E49: 0 | F49: 0
A50: MT-030-03-01 | B50: Atención de denuncias laborables en el sector público | C50: 2819 | D50: 12 | E50: 0.4256828663 | F50: 4
A51: MT-034-10-02 | B51: Cálculo del valor correspondiente a la jubilación patronal para trabajadores del servicio privado | C51: 3026 | D51: 0 | E51: 0 | F51: 0
A52: MT-005-02-01 | B52: Audiencia de mediación voluntaria para la solución de conflictos individuales de trabajo | C52: 3119 | D52: 9 | E52: 0.2885540237 | F52: 4
A53: MRL-012-01-01 | B53: Aprobación de reglamentos internos de trabajo | C53: 5104 | D53: 0 | E53: 0 | F53: 0
A54: MT-054-01-01 | B54: Recuperación de claves y modificación de correo electrónico en el Sistema Único de Trabajo | C54: 6635 | D54: 0 | E54: 0 | F54: 0
A55: MT-021-04-02 | B55: Registro de la Planificación de Capacitación del programa de Prevención de Riesgos Psicosociales | C55: 8340 | D55: 0 | E55: 0 | F55: 0
A56: MT-021-01-03 | B56: Registro de Informe anual de actividades del comité paritario | C56: 9189 | D56: 0 | E56: 0 | F56: 0
A57: MT-021-01-04 | B57: Aprobación de reglamentos de higiene y seguridad en el trabajo | C57: 10269 | D57: 3 | E57: 0.02921413964 | F57: 4
A58: MT-046-01-05 | B58: Rehabilitación de personas con impedimento laboral en el servicio público a causa de inhabilidad especial por mora. | C58: 17484 | D58: 10 | E58: 0.05719514985 | F58: 4
A59: MT-021-03-02 | B59: Registro de Promoción y Prevención de Salud en el Trabajo | C59: 17489 | D59: 5 | E59: 0.02858939905 | F59: 4
A60: MT-049-04-03 | B60: Asistencia en la preselección de personal para instituciones públicas y empresas privadas a través del portal Red Socio Empleo mediante el envío de hojas de vida | C60: 18208 | D60: 0 | E60: 0 | F60: 0
A61: MT-021-04-01 | B61: Registro de Prevención de Amenazas Naturales y Riesgos Antrópicos | C61: 18411 | D61: 0 | E61: 0 | F61: 0
A62: N/A | B62: Acceso a la Información Pública del Ministerio de Trabajo | C62: 18614 | D62: 28 | E62: 0.1504244117 | F62: 4
A63: MT-049-04-01 | B63: Publicación de ofertas laborales en el portal Red Socio Empleo a través de las cuentas de los empleadores | C63: 21934 | D63: 0 | E63: 0 | F63: 0
A64: MT-044-04-01 | B64: Registro del pago de multas por sanciones | C64: 23965 | D64: 0 | E64: 0 | F64: 0
A65: MT-021-01-06 | B65: Registro de programas de prevención de uso y consumo de drogas en espacios laborales y programa de prevención de riesgo psicosocial | C65: 26466 | D65: 3 | E65: 0.01133529812 | F65: 4
A66: MT-030-03-02 | B66: Atención de denuncias laborales en el sector privado | C66: 29591 | D66: 39 | E66: 0.1317968301 | F66: 4
A67: MT-021-01-02 | B67: Registro de organismos paritarios y sus renovaciones | C67: 30352 | D67: 0 | E67: 0 | F67: 0
A68: MT-021-01-05 | B68: Registro de la declaración de los riesgos laborales y su plan de acción | C68: 33418 | D68: 0 | E68: 0 | F68: 0
A69: MT-021-02-03 | B69: Registro de trabajadores capacitados en materia de seguridad y salud en el trabajo. | C69: 34093 | D69: 0 | E69: 0 | F69: 0
A70: MRL-001-01-08 | B70: Emisión de oficio de validación de no tener impedimento para ejercer cargo público a la fecha | C70: 36750 | D70: 0 | E70: 0 | F70: 0
A71: MT-021-02-02 | B71: Registro de capacitaciones realizadas en materia de seguridad y salud en el trabajo | C71: 42591 | D71: 1 | E71: 0.002347913879 | F71: 4
A72: MT-044-03-11 | B72: Registro del pago de decimotercera y decimocuarta remuneración para el servicio doméstico | C72: 51650 | D72: 0 | E72: 0 | F72: 0
A73: MT-021-02-01 | B73: Registro de la planificación de capacitaciones en materia de seguridad y salud en el trabajo | C73: 62368 | D73: 2 | E73: 0.003206772704 | F73: 4
A74: MT-021-03-01 | B74: Registro de Vigilancia de la Salud | C74: 64992 | D74: 5 | E74: 0.007693254554 | F74: 4
A75: MT-044-03-10 | B75: Registro del pago de Participación de Utilidades | C75: 69017 | D75: 0 | E75: 0 | F75: 0
A76: MRL-001-01-03 | B76: Emisión de certificado de no tener impedimento para ejercer cargo público para extranjeros no residentes | C76: 76537 | D76: 4 | E76: 0.005226230451 | F76: 4
A77: MT-044-03-12 | B77: Registro del pago de decimocuarta remuneración | C77: 135939 | D77: 0 | E77: 0 | F77: 0
A78: MRL-001-01-09 | B78: Emisión de certificado de relación de dependencia laboral con el sector público | C78: 140913 | D78: 2 | E78: 0.001419315464 | F78: 4
A79: MT-044-03-06 | B79: Registro del pago de decimotercera remuneración | C79: 143326 | D79: 0 | E79: 0 | F79: 0
A80: MT-044-05-01 | B80: Registro de datos de trabajador para la vinculación laboral | C80: 478648 | D80: 0 | E80: 0 | F80: 0
A81: MT-044-05-02 | B81: Registro de actas de finiquito | C81: 726991 | D81: 0 | E81: 0 | F81: 0
A82: MRL-001-01-01 | B82: Emisión de certificado de no tener impedimento para ejercer cargo público para ecuatorianos y extranjeros residentes | C82: 1129606 | D82: 31 | E82: 0.002744319701 | F82: 4
A83: SETEC-014-04-04 | B83: Ampliación por incremento de instructores y/o cambio de coordiador pedagógico bajo las mismas áreas, especialidades, cursos o perfiles | C83: 0 | D83: 0 | E83: 0 | F83: 0
A84: SETEC-016-01-04 | B84: Emisión de credenciales de capacitador independiente | C84: 0 | D84: 0 | E84: 0 | F84: 0
A85: SETEC-014-05-09 | B85: Solicitud de la renovación de la calificación de Instituciones de Educación Superior como Operadores de Capacitación por capacitación continua y competencias laborales | C85: 0 | D85: 0 | E85: 0 | F85: 0
A86: SETEC-015-01-08 | B86: Solicitud de modificación al reconocimiento de organismos evaluadores de la conformidad para brindar servicios de certificación de personas | C86: 0 | D86: 0 | E86: 0 | F86: 0
A87: SETEC-014-05-08 | B87: Solicitud de renovación de la calificación de Instituciones de Educación Superior como Operadores de Capacitación por competencias laborales | C87: 0 | D87: 0 | E87: 0 | F87: 0
A88: SETEC-014-05-04 | B88: Solicitud de renovación de la calificación de Instituciones Públicas como Operadores de Capacitación Continua | C88: 0 | D88: 0 | E88: 0 | F88: 0
A89: SETEC-014-05-05 | B89: Solicitud de renovación de la calificación de Instituciones Públicas como Operadores de Capacitación por competencias laborales | C89: 0 | D89: 0 | E89: 0 | F89: 0
A90: SETEC-014-05-06 | B90: Solicitud de renovación de la calificación deInstituciones Públicas como Operadores de Capacitación por capacitación continua y competencias laborales | C90: 0 | D90: 0 | E90: 0 | F90: 0
A91: SETEC-015-01-01 | B91: Reconocimiento de personas naturales como organismos evaluadores de la conformidad para brindar servicios de certificación de personas | C91: 2 | D91: 0 | E91: 0 | F91: 0
A92: SETEC-014-03-03 | B92: Solicitud de modificación de la calificación de Instituciones de Educación Superior como Operadores de Capacitación | C92: 2 | D92: 0 | E92: 0 | F92: 0
A93: SETEC-014-05-07 | B93: Solicitud de renovación de la calificación de Instituciones de Educación Superior como Operadores de Capacitación como Operadores de Capacitación Continua | C93: 2 | D93: 0 | E93: 0 | F93: 0
A94: SETEC-014-04-02 | B94: Ampliación por nuevos cursos e instructores por competencias laborales | C94: 4 | D94: 0 | E94: 0 | F94: 0
A95: SETEC-014-02-08 | B95: Calificación de Instituciones de Educación Superior como Operadores de Capacitación por competencias laborales | C95: 4 | D95: 0 | E95: 0 | F95: 0
A96: SETEC-014-02-05 | B96: Calificación de Instituciones Públicas como Operadores de Capacitación por competencias laborales | C96: 4 | D96: 0 | E96: 0 | F96: 0
A97: SETEC-015-01-06 | B97: Renovación al reconocimiento de organismos evaluadores de la conformidad de Instituciones de Educación Superior para brindar servicios de certificación de personas | C97: 4 | D97: 0 | E97: 0 | F97: 0
A98: SETEC-015-01-04 | B98: Renovación al reconocimiento de organismos evaluadores de la conformidad de personas naturales para brindar servicios de certificación de personas | C98: 4 | D98: 0 | E98: 0 | F98: 0
A99: SETEC-014-03-02 | B99: Solicitud de modificación de la calificación de Instituciones Públicas como Operadores de Capacitación | C99: 4 | D99: 0 | E99: 0 | F99: 0
A100: SETEC-014-05-02 | B100: Solicitud de renovación de la calificación de Personas Naturales, Personas Jurídicas y Empresas Públicas como Operadores de Capacitación por competencias laborales | C100: 4 | D100: 0 | E100: 0 | F100: 0
A101: SETEC-015-01-02 | B101: Reconocimiento de organismos evaluadores de la conformidad de Instituciones de Educación Superior para brindar servicios de certificación de personas | C101: 6 | D101: 0 | E101: 0 | F101: 0
A102: SETEC-017-01-02 | B102: Solicitud de auditoría al cumplimiento de los estándares de calificación | C102: 6 | D102: 0 | E102: 0 | F102: 0
A103: SETEC-017-02-02 | B103: Solicitud de auditoría al cumplimiento del sistema de gestión de certificación de personas | C103: 6 | D103: 0 | E103: 0 | F103: 0
A104: SETEC-017-01-03 | B104: Quejas y sugerencias sobre la prestacción de servicios de capacitación y certificación por parte de terceros | C104: 8 | D104: 4 | E104: 50 | F104: 10
A105: SETEC-014-02-02 | B105: Calificación de Personas Naturales, Personas Jurídicas y Empresas Públicas como Operadores de Capacitación por competencias laborales | C105: 12 | D105: 0 | E105: 0 | F105: 0
A106: SETEC-014-02-04 | B106: Calificación de Instituciones Públicas como Operadores de Capacitación Continua | C106: 18 | D106: 0 | E106: 0 | F106: 0
A107: SETEC-010-01-02 | B107: Elaborar o actualizar perfiles ocupacionales para capacitación y certificación de personas por competancias laborales | C107: 22 | D107: 0 | E107: 0 | F107: 0
A108: SETEC-015-01-03 | B108: Reconocimiento de organismos evaluadores de la conformidad de personas jurídicas para brindar servicios de certificación de personas | C108: 26 | D108: 0 | E108: 0 | F108: 0
A109: SETEC-014-03-01 | B109: Solicitud de modificación de la calificación de Personas Naturales, Personas Jurídicas y Empresas Públicas como Operadores de Capacitación | C109: 26 | D109: 0 | E109: 0 | F109: 0
A110: SETEC-015-01-05 | B110: Renovación al reconocimiento de organismos evaluadores de la conformidad de personas jurídicas para brindar servicios de certificación de personas | C110: 28 | D110: 0 | E110: 0 | F110: 0
A111: SETEC-014-02-07 | B111: Calificación de Instituciones de Educación Superior como Operadores de Capacitación Continua | C111: 30 | D111: 0 | E111: 0 | F111: 0
A112: SETEC-014-05-01 | B112: Solicitud de renovación de la calificación de Personas Naturales, Personas Jurídicas y Empresas Públicas como Operadores de Capacitación de Capacitación Continua | C112: 30 | D112: 0 | E112: 0 | F112: 0
A113: SETEC-014-02-09 | B113: Calificación de Instituciones de Educación Superior como Operadores de Capacitación por capacitación continua y competencias laborales | C113: 32 | D113: 0 | E113: 0 | F113: 0
A114: SETEC-016-01-02 | B114: Renovación de la calificación como capacitador independiente | C114: 34 | D114: 0 | E114: 0 | F114: 0
A115: SETEC-014-05-03 | B115: Solicitud de renovación de la calificación de Personas Naturales, Personas Jurídicas y Empresas Públicas como Operadores de Capacitación por capacitación continua y competencias laborales | C115: 34 | D115: 0 | E115: 0 | F115: 0
A116: SETEC-014-02-06 | B116: Calificación de Instituciones Públicas como Operadores de Capacitación por capacitación continua y competencias laborales | C116: 40 | D116: 0 | E116: 0 | F116: 0
A117: SETEC-017-03-02 | B117: Quejas y sugerencias sobre el mal uso de marca SETEC por parte de terceros | C117: 40 | D117: 0 | E117: 0 | F117: 0
A118: SETEC-010-02-01 | B118: Elaboración de esquemas para la certificación de personas bajo competencias laborales | C118: 42 | D118: 0 | E118: 0 | F118: 0
A119: SETEC-010-03-01 | B119: Elaborar instrumentos para la certificación de personas bajo competencias laborales | C119: 42 | D119: 0 | E119: 0 | F119: 0
A120: SETEC-014-04-03 | B120: Ampliación por nuevos cursos e instructores por capacitación continua y competencias laborales | C120: 50 | D120: 0 | E120: 0 | F120: 0
A121: SETEC-017-02-01 | B121: Solicitud de asesoramiento técnico para el proceso de auditoría al sistema de gestión de certificación de personas | C121: 60 | D121: 0 | E121: 0 | F121: 0
A122: SETEC-017-01-01 | B122: Solicitud de asesoramiento técnico para el proceso de auditoría al cumplimiento de los estándares de calificación | C122: 64 | D122: 0 | E122: 0 | F122: 0
A123: SETEC-014-04-01 | B123: Ampliación por nuevos cursos e instructores por capacitación continua | C123: 74 | D123: 0 | E123: 0 | F123: 0
A124: SETEC-012-01-01 | B124: Asesoramiento metodológico en la elaboración de diseños y estructuras curriculares | C124: 124 | D124: 0 | E124: 0 | F124: 0
A125: SETEC-016-01-03 | B125: Ampliación de la calificación como capacitador independiente | C125: 132 | D125: 0 | E125: 0 | F125: 0
A126: SETEC-015-01-09 | B126: Asistencia técnica en el proceso de reconocimiento de organismos certificadores de personas | C126: 142 | D126: 0 | E126: 0 | F126: 0
A127: SETEC-015-01-07 | B127: Ampliación al reconocimiento de organismos evaluadores de la conformidad para brindar servicios de certificación de personas | C127: 154 | D127: 0 | E127: 0 | F127: 0
A128: SETEC-014-02-01 | B128: Calificación de Personas Naturales, Personas Jurídicas y Empresas Públicas como Operadores de Capacitación de Capacitación Continua | C128: 164 | D128: 0 | E128: 0 | F128: 0
A129: SETEC-014-02-03 | B129: Calificación de Personas Naturales, Personas Jurídicas y Empresas Públicas como Operadores de Capacitación continua y competencias laborales | C129: 174 | D129: 0 | E129: 0 | F129: 0
A130: SETEC-016-01-01 | B130: Calificación como capacitador independiente | C130: 422 | D130: 0 | E130: 0 | F130: 0
A131: SETEC-017-03-01 | B131: Solicitud de aprobación de productos comunicacionales | C131: 1120 | D131: 0 | E131: 0 | F131: 0
A132: SETEC-016-01-05 | B132: Asistencia técnica en el proceso de calificación como capacitador independiente | C132: 3680 | D132: 0 | E132: 0 | F132: 0
A133: SETEC-017-03-04 | B133: Solicitud de sellado de certificados emitidos por los operadores de capacitación de capacitación y organismos evaluadores de la conformidad | C133: 99136 | D133: 0 | E133: 0 | F133: 0
A134: SETEC-009-02-01 | B134: Consulta de análisis y estudios sobre capacitación y certificación de personas | C134: 755848 | D134: 0 | E134: 0 | F134: 0

Sheet COSTO ADMINISTRACIÓN PÚBLICA
A1: PRIORIZACIÓN DE TRÁMITES ADMINISTRATIVOS
A2: COSTOS PARA LA ADMINISTRACIÓN PÚBLICA
A4: IDENTIFICADOR | B4: TRÁMITE | C4: INSUMOS PARA COSTO | F4: COSTO PARA LA ADM. PÚBLICA | H4: SBU | I4: 400
C5: TIEMPO (HORAS) | D5: COSTO PERSONAL | E5: COSTO RECURSOS
A6: MT-021-01-01 | B6: Aprobación de planos para la construcción, habilitación de fábricas y/o campamentos | C6: 15 | D6: =C6*$I$4/160 -> 37.5 | E6: 200 | F6: =D6+E6 -> 237.5
A7: MT-048-01-05 | B7: Suscripción de actas transaccionales para instituciones privadas | C7: 15 | D7: =C7*$I$4/160 -> 37.5 | E7: 100 | F7: =D7+E7 -> 137.5
A8: MT-045-03-04 | B8: Aprobación de disolución de organizaciones sociales, fundaciones y microempresas asociativas | C8: 20 | D8: 50 | E8: 100 | F8: 150
A9: MT-045-01-02 | B9: Registro de la marginación de organizaciones laborales | C9: 20 | D9: 50 | E9: 100 | F9: 150
A10: MT-047-01-02 | B10: Resolución del pliego de peticiones con sentencia de segunda instancia | C10: 20 | D10: 50 | E10: 100 | F10: 150
A11: MT-045-02-07 | B11: Aprobación de disolución voluntaria de personería jurídica de organizaciones artesanales | C11: 15 | D11: 37.5 | E11: 100 | F11: 137.5
A12: MT-053-02-01 | B12: Legalización de documentos FEDESOMEC previo al inicio de cursos | C12: 15 | D12: 37.5 | E12: 100 | F12: 137.5
A13: MT-045-02-01 | B13: Registro de ingreso, retiro o exclusión de socios de las organizaciones artesanales | C13: 15 | D13: 37.5 | E13: 100 | F13: 137.5
A14: MT-046-01-02 | B14: Rehabilitación de personas con impedimento laboral en el servicio público a causa de retiro con compensación por retiro voluntario, venta de renuncia o figuras similares | C14: 15 | D14: 37.5 | E14: 100 | F14: 137.5
A15: MRL-015-01-03 | B15: Refrendación de títulos nuevos y canje de la Federación Ecuatoriana de Operadores y Mecánicos de Equipo Caminero (FEDESOMEC) | C15: 20 | D15: 50 | E15: 100 | F15: 150
A16: MT-048-03-02 | B16: Resolución de reclamación colectiva presentada por instituciones privadas por la falta de negociación del contrato colectivo | C16: 20 | D16: 50 | E16: 200 | F16: 250
A17: MT-046-01-08 | B17: Rehabilitación de personas con impedimento laboral en el servicio público a causa de interdicción judicial | C17: 4 | D17: 10 | E17: 100 | F17: 110
A18: MT-046-01-06 | B18: Rehabilitación de personas con impedimento laboral en el servicio público a causa de compra de renuncia con indemnización. | C18: 4 | D18: 10 | E18: 100 | F18: 110
A19: MT-046-01-01 | B19: Rehabilitación de impedidos para laborar en el servicio público por indemnización por supresión de puestos | C19: 4 | D19: 10 | E19: 100 | F19: 110
A20: MT-045-02-04 | B20: Registro de directivas de las organizaciones artesanales | C20: 15 | D20: 37.5 | E20: 200 | F20: 237.5
A21: MT-048-01-06 | B21: Suscripción de actas transaccionales para instituciones públicas para trabajadores bajo Código del Trabajo | C21: 15 | D21: 37.5 | E21: 100 | F21: 137.5
A22: MT-016-02-02 | B22: Aprobación de extensión de horarios de trabajo (Suplementarias y Extraordinarias) | C22: 10 | D22: 25 | E22: 100 | F22: 125
A23: MT-045-01-07 | B23: Aprobación de reformas a estatutos de organizaciones laborales | C23: 10 | D23: 25 | E23: 100 | F23: 125
A24: MT-045-03-05 | B24: Aprobación de reformas al estatuto de organizaciones sociales, fundaciones y microempresas asociativas | C24: 10 | D24: 25 | E24: 100 | F24: 125
A25: MT-048-03-01 | B25: Resolución de reclamación colectiva presentada por instituciones públicas por la falta de negociación del contrato colectivo bajo Código de Trabajo | C25: 30 | D25: 75 | E25: 200 | F25: 275
A26: MRL-015-01-02 | B26: Refrendación de títulos nuevos y canje de Centros de Formación Artesanal y Organizaciones Artesanales | C26: 30 | D26: 75 | E26: 200 | F26: 275
A27: MT-045-01-03 | B27: Registro de inclusión y/o exclusión de socios de organizaciones laborales | C27: 15 | D27: 37.5 | E27: 100 | F27: 137.5
A28: MT-045-02-05 | B28: Aprobación de estatutos y concesión de personería jurídica de organizaciones artesanales | C28: 20 | D28: 50 | E28: 100 | F28: 150
A29: MT-045-01-08 | B29: Aprobación de estatutos y personería jurídica en organizaciones laborales | C29: 20 | D29: 50 | E29: 100 | F29: 150
A30: MT-048-01-03 | B30: Suscripción de contratos colectivos para instituciones privadas | C30: 20 | D30: 50 | E30: 100 | F30: 150
A31: MT-045-02-06 | B31: Aprobación de reformas total y parcial de estatutos de organizaciones artesanales | C31: 20 | D31: 50 | E31: 100 | F31: 150
A32: MT-055-01-01 | B32: Aprobación de unificación de utilidades para empleadores del sector privado | C32: 20 | D32: 50 | E32: 100 | F32: 150
A33: MT-053-01-06 | B33: Legalización de documentos previo a la titulación artesanal bajo la modalidad propios derechos y convalidación profesional | C33: 20 | D33: 50 | E33: 100 | F33: 150
A34: MT-046-01-03 | B34: Rehabilitación de impedidos para laborar en el servicio público por destitución | C34: 4 | D34: 10 | E34: 50 | F34: 60
A35: MT-053-01-05 | B35: Legalización de documentos previo a la titulación artesanal bajo la modalidad practica profesional | C35: 15 | D35: 37.5 | E35: 200 | F35: 237.5
A36: MT-048-01-04 | B36: Suscripción de contrato colectivo para instituciones públicas para trabajadores bajo Código del Trabajo | C36: 15 | D36: 37.5 | E36: 200 | F36: 237.5
A37: MT-045-03-02 | B37: Registro de inclusión y/o exclusión de miembros en organizaciones sociales, fundaciones y microempresas asociativas | C37: 15 | D37: 37.5 | E37: 200 | F37: 237.5
A38: MT-045-03-06 | B38: Aprobación del estatuto y otorgamiento de la personalidad jurídica de organizaciones sociales, fundaciones y microempresas asociativas | C38: 20 | D38: 50 | E38: 100 | F38: 150
A39: MT-001-08-01 | B39: Emisión de copias certificadas de actos administrativos y normativos emitidos por el Ministerio del Trabajo | C39: 20 | D39: 50 | E39: 100 | F39: 150
A40: MT-045-01-01 | B40: Registro de directivas de organizaciones laborales | C40: 20 | D40: 50 | E40: 100 | F40: 150
A41: MT-016-02-01 | B41: Aprobación de horarios especiales de trabajo de empresas o instituciones bajo Código del Trabajo | C41: 10 | D41: 25 | E41: 100 | F41: 125
A42: MRL-008-02-01 | B42: Terminación de relación laboral a petición del empleador con visto bueno con suspensión de relación laboral | C42: 15 | D42: 37.5 | E42: 200 | F42: 237.5
A43: MT-047-01-01 | B43: Resolución del pliego de peticiones con sentencia de primera instancia | C43: 20 | D43: 50 | E43: 100 | F43: 150
A44: MT-045-03-01 | B44: Registro de directivas para organizaciones sociales, fundaciones y microempresas asociativas | C44: 20 | D44: 50 | E44: 100 | F44: 150
A45: MRL-005-01-01 | B45: Audiencia de diálogo social en la solución de conflictos colectivos | C45: 20 | D45: 50 | E45: 100 | F45: 150
A46: MT-034-10-01 | B46: Cálculo del valor correspondiente a la jubilación patronal para trabajadores de código de trabajo en el sector público | C46: 8 | D46: 20 | E46: 100 | F46: 120
A47: MRL-008-02-03 | B47: Terminación de relación laboral a petición del empleado con visto bueno | C47: 10 | D47: 25 | E47: 200 | F47: 225
A48: MT-049-04-02 | B48: Asistencia en el proceso integral de preselección de personal para instituciones públicas y empresas privadas a través del portal Red Socio Empleo | C48: 30 | D48: 75 | E48: 200 | F48: 275
A49: MRL-008-02-02 | B49: Terminación de relación laboral a petición del empleador con visto bueno sin suspensión de relación laboral | C49: 10 | D49: 25 | E49: 200 | F49: 225
A50: MT-040-01-01 | B50: Autorización laboral para extranjeros para trabajar en el sector público. | C50: 8 | D50: 20 | E50: 50 | F50: 70
A51: MT-030-03-01 | B51: Atención de denuncias laborables en el sector público | C51: 15 | D51: 37.5 | E51: 200 | F51: 237.5
A52: MT-034-10-02 | B52: Cálculo del valor correspondiente a la jubilación patronal para trabajadores del servicio privado | C52: 8 | D52: 20 | E52: 100 | F52: 120
A53: MT-005-02-01 | B53: Audiencia de mediación voluntaria para la solución de conflictos individuales de trabajo | C53: 15 | D53: 37.5 | E53: 100 | F53: 137.5
A54: MRL-012-01-01 | B54: Aprobación de reglamentos internos de trabajo | C54: 8 | D54: 20 | E54: 100 | F54: 120
A55: MT-054-01-01 | B55: Recuperación de claves y modificación de correo electrónico en el Sistema Único de Trabajo | C55: 2 | D55: 5 | E55: 50 | F55: 55
A56: MT-021-04-02 | B56: Registro de la Planificación de Capacitación del programa de Prevención de Riesgos Psicosociales | C56: 5 | D56: 12.5 | E56: 50 | F56: 62.5
A57: MT-021-01-03 | B57: Registro de Informe anual de actividades del comité paritario | C57: 5 | D57: 12.5 | E57: 50 | F57: 62.5
A58: MT-021-01-04 | B58: Aprobación de reglamentos de higiene y seguridad en el trabajo | C58: 5 | D58: 12.5 | E58: 50 | F58: 62.5
A59: MT-046-01-05 | B59: Rehabilitación de personas con impedimento laboral en el servicio público a causa de inhabilidad especial por mora. | C59: 4 | D59: 10 | E59: 100 | F59: 110
A60: MT-021-03-02 | B60: Registro de Promoción y Prevención de Salud en el Trabajo | C60: 4 | D60: 10 | E60: 100 | F60: 110
A61: MT-049-04-03 | B61: Asistencia en la preselección de personal para instituciones públicas y empresas privadas a través del portal Red Socio Empleo mediante el envío de hojas de vida | C61: 8 | D61: 20 | E61: 100 | F61: 120
A62: MT-021-04-01 | B62: Registro de Prevención de Amenazas Naturales y Riesgos Antrópicos | C62: 4 | D62: 10 | E62: 50 | F62: 60
A63: N/A | B63: Acceso a la Información Pública del Ministerio de Trabajo | C63: 4 | D63: 10 | E63: 50 | F63: 60
A64: MT-049-04-01 | B64: Publicación de ofertas laborales en el portal Red Socio Empleo a través de las cuentas de los empleadores | C64: 2 | D64: 5 | E64: 50 | F64: 55
A65: MT-044-04-01 | B65: Registro del pago de multas por sanciones | C65: 4 | D65: 10 | E65: 100 | F65: 110
A66: MT-021-01-06 | B66: Registro de programas de prevención de uso y consumo de drogas en espacios laborales y programa de prevención de riesgo psicosocial | C66: 4 | D66: 10 | E66: 100 | F66: 110
A67: MT-030-03-02 | B67: Atención de denuncias laborales en el sector privado | C67: 10 | D67: 25 | E67: 100 | F67: 125
A68: MT-021-01-02 | B68: Registro de organismos paritarios y sus renovaciones | C68: 10 | D68: 25 | E68: 100 | F68: 125
A69: MT-021-01-05 | B69: Registro de la declaración de los riesgos laborales y su plan de acción | C69: 8 | D69: 20 | E69: 100 | F69: 120
A70: MT-021-02-03 | B70: Registro de trabajadores capacitados en materia de seguridad y salud en el trabajo. | C70: 8 | D70: 20 | E70: 100 | F70: 120
A71: MRL-001-01-08 | B71: Emisión de oficio de validación de no tener impedimento para ejercer cargo público a la fecha | C71: 4 | D71: 10 | E71: 50 | F71: 60
A72: MT-021-02-02 | B72: Registro de capacitaciones realizadas en materia de seguridad y salud en el trabajo | C72: 4 | D72: 10 | E72: 50 | F72: 60
A73: MT-044-03-11 | B73: Registro del pago de decimotercera y decimocuarta remuneración para el servicio doméstico | C73: 4 | D73: 10 | E73: 100 | F73: 110
A74: MT-021-02-01 | B74: Registro de la planificación de capacitaciones en materia de seguridad y salud en el trabajo | C74: 4 | D74: 10 | E74: 50 | F74: 60
A75: MT-021-03-01 | B75: Registro de Vigilancia de la Salud | C75: 4 | D75: 10 | E75: 50 | F75: 60
A76: MT-044-03-10 | B76: Registro del pago de Participación de Utilidades | C76: 4 | D76: 10 | E76: 100 | F76: 110
A77: MRL-001-01-03 | B77: Emisión de certificado de no tener impedimento para ejercer cargo público para extranjeros no residentes | C77: 4 | D77: 10 | E77: 50 | F77: 60
A78: MT-044-03-12 | B78: Registro del pago de decimocuarta remuneración | C78: 5 | D78: 12.5 | E78: 100 | F78: 112.5
A79: MRL-001-01-09 | B79: Emisión de certificado de relación de dependencia laboral con el sector público | C79: 2 | D79: 5 | E79: 100 | F79: 105
A80: MT-044-03-06 | B80: Registro del pago de decimotercera remuneración | C80: 2 | D80: 5 | E80: 100 | F80: 105
A81: MT-044-05-01 | B81: Registro de datos de trabajador para la vinculación laboral | C81: 2 | D81: 5 | E81: 50 | F81: 55
A82: MT-044-05-02 | B82: Registro de actas de finiquito | C82: 2 | D82: 5 | E82: 50 | F82: 55
A83: MRL-001-01-01 | B83: Emisión de certificado de no tener impedimento para ejercer cargo público para ecuatorianos y extranjeros residentes | C83: 2 | D83: 5 | E83: 100 | F83: 105
A84: SETEC-014-04-04 | B84: Ampliación por incremento de instructores y/o cambio de coordiador pedagógico bajo las mismas áreas, especialidades, cursos o perfiles | C84: 1.1 | D84: =C84*$I$4/160 -> 2.75 | E84: 8.7125 | F84: =D84+E84 -> 11.4625
A85: SETEC-016-01-04 | B85: Emisión de credenciales de capacitador independiente | C85: 0.2 | D85: =C85*$I$4/160 -> 0.5 | E85: =0.4+0.06 -> 0.46 | F85: =D85+E85 -> 0.96
A86: SETEC-014-05-09 | B86: Solicitud de la renovación de la calificación de Instituciones de Educación Superior como Operadores de Capacitación por capacitación continua y competencias laborales | C86: 0.5 | D86: 1.25 | E86: 7.787 | F86: 9.037
A87: SETEC-015-01-08 | B87: Solicitud de modificación al reconocimiento de organismos evaluadores de la conformidad para brindar servicios de certificación de personas | C87: 8 | D87: 20 | E87: =(15*0.15)+(180*0.08)+(1*0.12)+(0.2*3.17)+(20*0.03) -> 18.004 | F87: 38.004
A88: SETEC-014-05-08 | B88: Solicitud de renovación de la calificación de Instituciones de Educación Superior como Operadores de Capacitación por competencias laborales | C88: 0.5 | D88: 1.25 | E88: 7.787 | F88: 9.037
A89: SETEC-014-05-04 | B89: Solicitud de renovación de la calificación de Instituciones Públicas como Operadores de Capacitación Continua | C89: 0.5 | D89: 1.25 | E89: 7.787 | F89: 9.037
A90: SETEC-014-05-05 | B90: Solicitud de renovación de la calificación de Instituciones Públicas como Operadores de Capacitación por competencias laborales | C90: 0.5 | D90: 1.25 | E90: 7.787 | F90: 9.037
A91: SETEC-014-05-06 | B91: Solicitud de renovación de la calificación deInstituciones Públicas como Operadores de Capacitación por capacitación continua y competencias laborales | C91: 0.5 | D91: 1.25 | E91: 7.787 | F91: 9.037
A92: SETEC-015-01-01 | B92: Reconocimiento de personas naturales como organismos evaluadores de la conformidad para brindar servicios de certificación de personas | C92: 5 | D92: 12.5 | E92: 20.254 | F92: 32.754
A93: SETEC-014-03-03 | B93: Solicitud de modificación de la calificación de Instituciones de Educación Superior como Operadores de Capacitación | C93: 4 | D93: 10 | E93: 8.7125 | F93: 18.7125
A94: SETEC-014-05-07 | B94: Solicitud de renovación de la calificación de Instituciones de Educación Superior como Operadores de Capacitación como Operadores de Capacitación Continua | C94: 0.5 | D94: 1.25 | E94: 7.787 | F94: 9.037
A95: SETEC-014-04-02 | B95: Ampliación por nuevos cursos e instructores por competencias laborales | C95: 4 | D95: 10 | E95: 8.7125 | F95: 18.7125
A96: SETEC-014-02-08 | B96: Calificación de Instituciones de Educación Superior como Operadores de Capacitación por competencias laborales | C96: 4 | D96: 10 | E96: 17.305 | F96: 27.305
A97: SETEC-014-02-05 | B97: Calificación de Instituciones Públicas como Operadores de Capacitación por competencias laborales | C97: 4 | D97: 10 | E97: 17.305 | F97: 27.305
A98: SETEC-015-01-06 | B98: Renovación al reconocimiento de organismos evaluadores de la conformidad de Instituciones de Educación Superior para brindar servicios de certificación de personas | C98: 5 | D98: 12.5 | E98: =(15*0.15)+(120*0.08)+(1*0.12)+(0.1*3.17)+(10*0.03) -> 12.587 | F98: 25.087
A99: SETEC-015-01-04 | B99: Renovación al reconocimiento de organismos evaluadores de la conformidad de personas naturales para brindar servicios de certificación de personas | C99: 5 | D99: 12.5 | E99: =(15*0.15)+(120*0.08)+(1*0.12)+(0.1*3.17)+(10*0.03) -> 12.587 | F99: 25.087
A100: SETEC-014-03-02 | B100: Solicitud de modificación de la calificación de Instituciones Públicas como Operadores de Capacitación | C100: 4 | D100: 10 | E100: 8.7125 | F100: 18.7125
A101: SETEC-014-05-02 | B101: Solicitud de renovación de la calificación de Personas Naturales, Personas Jurídicas y Empresas Públicas como Operadores de Capacitación por competencias laborales | C101: 0.5 | D101: 1.25 | E101: 7.787 | F101: 9.037
A102: SETEC-015-01-02 | B102: Reconocimiento de organismos evaluadores de la conformidad de Instituciones de Educación Superior para brindar servicios de certificación de personas | C102: 242 | D102: 605 | E102: 20.254 | F102: 625.254
A103: SETEC-017-01-02 | B103: Solicitud de auditoría al cumplimiento de los estándares de calificación | C103: 9 | D103: 22.5 | E103: =(60*0.15) -> 9 | F103: 31.5
A104: SETEC-017-02-02 | B104: Solicitud de auditoría al cumplimiento del sistema de gestión de certificación de personas | C104: 9 | D104: 22.5 | E104: 9 | F104: 31.5
A105: SETEC-017-01-03 | B105: Quejas y sugerencias sobre la prestacción de servicios de capacitación y certificación por parte de terceros | C105: 3.3 | D105: 8.25 | E105: =+(100*0.15) -> 15 | F105: 23.25
A106: SETEC-014-02-02 | B106: Calificación de Personas Naturales, Personas Jurídicas y Empresas Públicas como Operadores de Capacitación por competencias laborales | C106: 4 | D106: 10 | E106: 17.305 | F106: 27.305
A107: SETEC-014-02-04 | B107: Calificación de Instituciones Públicas como Operadores de Capacitación Continua | C107: 4 | D107: 10 | E107: 17.305 | F107: 27.305
A108: SETEC-010-01-02 | B108: Elaborar o actualizar perfiles ocupacionales para capacitación y certificación de personas por competancias laborales | C108: 40 | D108: 100 | E108: 360 | F108: 460
A109: SETEC-015-01-03 | B109: Reconocimiento de organismos evaluadores de la conformidad de personas jurídicas para brindar servicios de certificación de personas | C109: 5 | D109: 12.5 | E109: =(30*0.15)+(180*0.08)+(1*0.12)+(0.2*3.17)+(20*0.03) -> 20.254 | F109: 32.754
A110: SETEC-014-03-01 | B110: Solicitud de modificación de la calificación de Personas Naturales, Personas Jurídicas y Empresas Públicas como Operadores de Capacitación | C110: 4 | D110: 10 | E110: 8.7125 | F110: 18.7125
A111: SETEC-015-01-05 | B111: Renovación al reconocimiento de organismos evaluadores de la conformidad de personas jurídicas para brindar servicios de certificación de personas | C111: 5 | D111: 12.5 | E111: =(15*0.15)+(120*0.08)+(1*0.12)+(0.1*3.17)+(10*0.03) -> 12.587 | F111: 25.087
A112: SETEC-014-02-07 | B112: Calificación de Instituciones de Educación Superior como Operadores de Capacitación Continua | C112: 4 | D112: 10 | E112: 17.305 | F112: 27.305
A113: SETEC-014-05-01 | B113: Solicitud de renovación de la calificación de Personas Naturales, Personas Jurídicas y Empresas Públicas como Operadores de Capacitación de Capacitación Continua | C113: 0.5 | D113: 1.25 | E113: 7.787 | F113: 9.037
A114: SETEC-014-02-09 | B114: Calificación de Instituciones de Educación Superior como Operadores de Capacitación por capacitación continua y competencias laborales | C114: 6 | D114: 15 | E114: 17.305 | F114: 32.305
A115: SETEC-016-01-02 | B115: Renovación de la calificación como capacitador independiente | C115: 15 | D115: 37.5 | E115: =(120*0.15) -> 18 | F115: 55.5
A116: SETEC-014-05-03 | B116: Solicitud de renovación de la calificación de Personas Naturales, Personas Jurídicas y Empresas Públicas como Operadores de Capacitación por capacitación continua y competencias laborales | C116: 0.5 | D116: 1.25 | E116: 7.787 | F116: 9.037
A117: SETEC-014-02-06 | B117: Calificación de Instituciones Públicas como Operadores de Capacitación por capacitación continua y competencias laborales | C117: 6 | D117: 15 | E117: 17.305 | F117: 32.305
A118: SETEC-017-03-02 | B118: Quejas y sugerencias sobre el mal uso de marca SETEC por parte de terceros | C118: 2 | D118: 5 | E118: =(240*0.15) -> 36 | F118: 41
A119: SETEC-010-02-01 | B119: Elaboración de esquemas para la certificación de personas bajo competencias laborales | C119: 40 | D119: 100 | E119: 360 | F119: 460
A120: SETEC-010-03-01 | B120: Elaborar instrumentos para la certificación de personas bajo competencias laborales | C120: 40 | D120: 100 | E120: 360 | F120: 460
A121: SETEC-014-04-03 | B121: Ampliación por nuevos cursos e instructores por capacitación continua y competencias laborales | C121: 4 | D121: 10 | E121: 8.7125 | F121: 18.7125
A122: SETEC-017-02-01 | B122: Solicitud de asesoramiento técnico para el proceso de auditoría al sistema de gestión de certificación de personas | C122: 1 | D122: 2.5 | E122: =(60*0.15) -> 9 | F122: 11.5
A123: SETEC-017-01-01 | B123: Solicitud de asesoramiento técnico para el proceso de auditoría al cumplimiento de los estándares de calificación | C123: 1 | D123: 2.5 | E123: 9 | F123: 11.5
A124: SETEC-014-04-01 | B124: Ampliación por nuevos cursos e instructores por capacitación continua | C124: 4 | D124: 10 | E124: 8.7125 | F124: 18.7125
A125: SETEC-012-01-01 | B125: Asesoramiento metodológico en la elaboración de diseños y estructuras curriculares | C125: 1 | D125: 2.5 | E125: 360 | F125: 362.5
A126: SETEC-016-01-03 | B126: Ampliación de la calificación como capacitador independiente | C126: 48 | D126: 120 | E126: =(120*0.15) -> 18 | F126: 138
A127: SETEC-015-01-09 | B127: Asistencia técnica en el proceso de reconocimiento de organismos certificadores de personas | C127: 1 | D127: 2.5 | E127: =(10*0.15)+(1*0.12)+(0.02*3.17)+(2*0.03) -> 1.7434 | F127: 4.2434
A128: SETEC-015-01-07 | B128: Ampliación al reconocimiento de organismos evaluadores de la conformidad para brindar servicios de certificación de personas | C128: 5 | D128: 12.5 | E128: =(15*0.15)+(180*0.08)+(1*0.12)+(0.2*3.17)+(20*0.03) -> 18.004 | F128: 30.504
A129: SETEC-014-02-01 | B129: Calificación de Personas Naturales, Personas Jurídicas y Empresas Públicas como Operadores de Capacitación de Capacitación Continua | C129: 4 | D129: 10 | E129: 17.305 | F129: 27.305
A130: SETEC-014-02-03 | B130: Calificación de Personas Naturales, Personas Jurídicas y Empresas Públicas como Operadores de Capacitación continua y competencias laborales | C130: 4 | D130: 10 | E130: 17.305 | F130: 27.305
A131: SETEC-016-01-01 | B131: Calificación como capacitador independiente | C131: 48 | D131: 120 | E131: =(120*0.15) -> 18 | F131: 138
A132: SETEC-017-03-01 | B132: Solicitud de aprobación de productos comunicacionales | C132: 0.3 | D132: 0.75 | E132: =(60*0.15) -> 9 | F132: 9.75
A133: SETEC-016-01-05 | B133: Asistencia técnica en el proceso de calificación como capacitador independiente | C133: 0.1 | D133: 0.25 | E133: =(60*0.15) -> 9 | F133: 9.25
A134: SETEC-017-03-04 | B134: Solicitud de sellado de certificados emitidos por los operadores de capacitación de capacitación y organismos evaluadores de la conformidad | C134: 1 | D134: 2.5 | E134: =+(60*0.15) -> 9 | F134: 11.5
A135: SETEC-009-02-01 | B135: Consulta de análisis y estudios sobre capacitación y certificación de personas | C135: 8 | D135: 20 | E135: 72 | F135: 92

Sheet RESUMEN DE COSTOS AP
A1: PRIORIZACIÓN DE TRÁMITES ADMINISTRATIVOS
A2: COSTOS PARA LA ADMINISTRACIÓN PÚBLICA
A4: IDENTIFICADOR | B4: TRÁMITE | C4: COSTO PARA LA ADM. PÚBLICA | D4: PUNTUACIÓN
A5: MT-049-04-01 | B5: Publicación de ofertas laborales en el portal Red Socio Empleo a través de las cuentas de los empleadores | C5: 55 | D5: 5
A6: MT-054-01-01 | B6: Recuperación de claves y modificación de correo electrónico en el Sistema Único de Trabajo | C6: 55 | D6: 5
A7: MT-044-05-02 | B7: Registro de actas de finiquito | C7: 55 | D7: 5
A8: MT-044-05-01 | B8: Registro de datos de trabajador para la vinculación laboral | C8: 55 | D8: 5
A9: N/A | B9: Acceso a la Información Pública del Ministerio de Trabajo | C9: 60 | D9: 5
A10: MRL-001-01-03 | B10: Emisión de certificado de no tener impedimento para ejercer cargo público para extranjeros no residentes | C10: 60 | D10: 5
A11: MRL-001-01-08 | B11: Emisión de oficio de validación de no tener impedimento para ejercer cargo público a la fecha | C11: 60 | D11: 5
A12: MT-021-02-02 | B12: Registro de capacitaciones realizadas en materia de seguridad y salud en el trabajo | C12: 60 | D12: 5
A13: MT-021-02-01 | B13: Registro de la planificación de capacitaciones en materia de seguridad y salud en el trabajo | C13: 60 | D13: 5
A14: MT-021-04-01 | B14: Registro de Prevención de Amenazas Naturales y Riesgos Antrópicos | C14: 60 | D14: 5
A15: MT-021-03-01 | B15: Registro de Vigilancia de la Salud | C15: 60 | D15: 5
A16: MT-046-01-03 | B16: Rehabilitación de impedidos para laborar en el servicio público por destitución | C16: 60 | D16: 5
A17: MT-021-01-04 | B17: Aprobación de reglamentos de higiene y seguridad en el trabajo | C17: 62.5 | D17: 5
A18: MT-021-01-03 | B18: Registro de Informe anual de actividades del comité paritario | C18: 62.5 | D18: 5
A19: MT-021-04-02 | B19: Registro de la Planificación de Capacitación del programa de Prevención de Riesgos Psicosociales | C19: 62.5 | D19: 5
A20: MT-040-01-01 | B20: Autorización laboral para extranjeros para trabajar en el sector público. | C20: 70 | D20: 5
A21: MRL-001-01-01 | B21: Emisión de certificado de no tener impedimento para ejercer cargo público para ecuatorianos y extranjeros residentes | C21: 105 | D21: 5
A22: MRL-001-01-09 | B22: Emisión de certificado de relación de dependencia laboral con el sector público | C22: 105 | D22: 5
A23: MT-044-03-06 | B23: Registro del pago de decimotercera remuneración | C23: 105 | D23: 5
A24: MT-021-01-06 | B24: Registro de programas de prevención de uso y consumo de drogas en espacios laborales y programa de prevención de riesgo psicosocial | C24: 110 | D24: 5
A25: MT-021-03-02 | B25: Registro de Promoción y Prevención de Salud en el Trabajo | C25: 110 | D25: 5
A26: MT-044-03-11 | B26: Registro del pago de decimotercera y decimocuarta remuneración para el servicio doméstico | C26: 110 | D26: 5
A27: MT-044-04-01 | B27: Registro del pago de multas por sanciones | C27: 110 | D27: 5
A28: MT-044-03-10 | B28: Registro del pago de Participación de Utilidades | C28: 110 | D28: 5
A29: MT-046-01-01 | B29: Rehabilitación de impedidos para laborar en el servicio público por indemnización por supresión de puestos | C29: 110 | D29: 5
A30: MT-046-01-06 | B30: Rehabilitación de personas con impedimento laboral en el servicio público a causa de compra de renuncia con indemnización. | C30: 110 | D30: 5
A31: MT-046-01-05 | B31: Rehabilitación de personas con impedimento laboral en el servicio público a causa de inhabilidad especial por mora. | C31: 110 | D31: 5
A32: MT-046-01-08 | B32: Rehabilitación de personas con impedimento laboral en el servicio público a causa de interdicción judicial | C32: 110 | D32: 5
A33: MT-044-03-12 | B33: Registro del pago de decimocuarta remuneración | C33: 112.5 | D33: 5
A34: MRL-012-01-01 | B34: Aprobación de reglamentos internos de trabajo | C34: 120 | D34: 5
A35: MT-049-04-03 | B35: Asistencia en la preselección de personal para instituciones públicas y empresas privadas a través del portal Red Socio Empleo mediante el envío de hojas de vida | C35: 120 | D35: 5
A36: MT-034-10-01 | B36: Cálculo del valor correspondiente a la jubilación patronal para trabajadores de código de trabajo en el sector público | C36: 120 | D36: 5
A37: MT-034-10-02 | B37: Cálculo del valor correspondiente a la jubilación patronal para trabajadores del servicio privado | C37: 120 | D37: 5
A38: MT-021-01-05 | B38: Registro de la declaración de los riesgos laborales y su plan de acción | C38: 120 | D38: 5
A39: MT-021-02-03 | B39: Registro de trabajadores capacitados en materia de seguridad y salud en el trabajo. | C39: 120 | D39: 5
A40: MT-016-02-02 | B40: Aprobación de extensión de horarios de trabajo (Suplementarias y Extraordinarias) | C40: 125 | D40: 5
A41: MT-016-02-01 | B41: Aprobación de horarios especiales de trabajo de empresas o instituciones bajo Código del Trabajo | C41: 125 | D41: 5
A42: MT-045-01-07 | B42: Aprobación de reformas a estatutos de organizaciones laborales | C42: 125 | D42: 5
A43: MT-045-03-05 | B43: Aprobación de reformas al estatuto de organizaciones sociales, fundaciones y microempresas asociativas | C43: 125 | D43: 5
A44: MT-030-03-02 | B44: Atención de denuncias laborales en el sector privado | C44: 125 | D44: 5
A45: MT-021-01-02 | B45: Registro de organismos paritarios y sus renovaciones | C45: 125 | D45: 5
A46: MT-045-02-07 | B46: Aprobación de disolución voluntaria de personería jurídica de organizaciones artesanales | C46: 137.5 | D46: 5
A47: MT-005-02-01 | B47: Audiencia de mediación voluntaria para la solución de conflictos individuales de trabajo | C47: 137.5 | D47: 5
A48: MT-053-02-01 | B48: Legalización de documentos FEDESOMEC previo al inicio de cursos | C48: 137.5 | D48: 5
A49: MT-045-01-03 | B49: Registro de inclusión y/o exclusión de socios de organizaciones laborales | C49: 137.5 | D49: 5
A50: MT-045-02-01 | B50: Registro de ingreso, retiro o exclusión de socios de las organizaciones artesanales | C50: 137.5 | D50: 5
A51: MT-046-01-02 | B51: Rehabilitación de personas con impedimento laboral en el servicio público a causa de retiro con compensación por retiro voluntario, venta de renuncia o figuras similares | C51: 137.5 | D51: 5
A52: MT-048-01-05 | B52: Suscripción de actas transaccionales para instituciones privadas | C52: 137.5 | D52: 5
A53: MT-048-01-06 | B53: Suscripción de actas transaccionales para instituciones públicas para trabajadores bajo Código del Trabajo | C53: 137.5 | D53: 5
A54: MT-045-03-04 | B54: Aprobación de disolución de organizaciones sociales, fundaciones y microempresas asociativas | C54: 150 | D54: 10
A55: MT-045-02-05 | B55: Aprobación de estatutos y concesión de personería jurídica de organizaciones artesanales | C55: 150 | D55: 10
A56: MT-045-01-08 | B56: Aprobación de estatutos y personería jurídica en organizaciones laborales | C56: 150 | D56: 10
A57: MT-045-02-06 | B57: Aprobación de reformas total y parcial de estatutos de organizaciones artesanales | C57: 150 | D57: 10
A58: MT-055-01-01 | B58: Aprobación de unificación de utilidades para empleadores del sector privado | C58: 150 | D58: 10
A59: MT-045-03-06 | B59: Aprobación del estatuto y otorgamiento de la personalidad jurídica de organizaciones sociales, fundaciones y microempresas asociativas | C59: 150 | D59: 10
A60: MRL-005-01-01 | B60: Audiencia de diálogo social en la solución de conflictos colectivos | C60: 150 | D60: 10
A61: MT-001-08-01 | B61: Emisión de copias certificadas de actos administrativos y normativos emitidos por el Ministerio del Trabajo | C61: 150 | D61: 10
A62: MT-053-01-06 | B62: Legalización de documentos previo a la titulación artesanal bajo la modalidad propios derechos y convalidación profesional | C62: 150 | D62: 10
A63: MRL-015-01-03 | B63: Refrendación de títulos nuevos y canje de la Federación Ecuatoriana de Operadores y Mecánicos de Equipo Caminero (FEDESOMEC) | C63: 150 | D63: 10
A64: MT-045-01-01 | B64: Registro de directivas de organizaciones laborales | C64: 150 | D64: 10
A65: MT-045-03-01 | B65: Registro de directivas para organizaciones sociales, fundaciones y microempresas asociativas | C65: 150 | D65: 10
A66: MT-045-01-02 | B66: Registro de la marginación de organizaciones laborales | C66: 150 | D66: 10
A67: MT-047-01-01 | B67: Resolución del pliego de peticiones con sentencia de primera instancia | C67: 150 | D67: 10
A68: MT-048-01-03 | B68: Suscripción de contratos colectivos para instituciones privadas | C68: 150 | D68: 10
A69: MRL-008-02-03 | B69: Terminación de relación laboral a petición del empleado con visto bueno | C69: 225 | D69: 10
A70: MRL-008-02-02 | B70: Terminación de relación laboral a petición del empleador con visto bueno sin suspensión de relación laboral | C70: 225 | D70: 10
A71: MT-021-01-01 | B71: Aprobación de planos para la construcción, habilitación de fábricas y/o campamentos | C71: 237.5 | D71: 10
A72: MT-030-03-01 | B72: Atención de denuncias laborables en el sector público | C72: 237.5 | D72: 10
A73: MT-053-01-05 | B73: Legalización de documentos previo a la titulación artesanal bajo la modalidad practica profesional | C73: 237.5 | D73: 10
A74: MT-045-02-04 | B74: Registro de directivas de las organizaciones artesanales | C74: 237.5 | D74: 10
A75: MT-045-03-02 | B75: Registro de inclusión y/o exclusión de miembros en organizaciones sociales, fundaciones y microempresas asociativas | C75: 237.5 | D75: 10
A76: MT-048-01-04 | B76: Suscripción de contrato colectivo para instituciones públicas para trabajadores bajo Código del Trabajo | C76: 237.5 | D76: 10
A77: MRL-008-02-01 | B77: Terminación de relación laboral a petición del empleador con visto bueno con suspensión de relación laboral | C77: 237.5 | D77: 10
A78: MT-048-03-02 | B78: Resolución de reclamación colectiva presentada por instituciones privadas por la falta de negociación del contrato colectivo | C78: 250 | D78: 10
A79: MT-047-01-02 | B79: Resolución del pliego de peticiones con sentencia de segunda instancia | C79: 150 | D79: 10
A80: MT-049-04-02 | B80: Asistencia en el proceso integral de preselección de personal para instituciones públicas y empresas privadas a través del portal Red Socio Empleo | C80: 275 | D80: 10
A81: MRL-015-01-02 | B81: Refrendación de títulos nuevos y canje de Centros de Formación Artesanal y Organizaciones Artesanales | C81: 275 | D81: 10
A82: MT-048-03-01 | B82: Resolución de reclamación colectiva presentada por instituciones públicas por la falta de negociación del contrato colectivo bajo Código de Trabajo | C82: 275 | D82: 10
A83: SETEC-016-01-04 | B83: Emisión de credenciales de capacitador independiente | C83: 0.96 | D83: 10
A84: SETEC-015-01-09 | B84: Asistencia técnica en el proceso de reconocimiento de organismos certificadores de personas | C84: 4.2434 | D84: 10
A85: SETEC-014-05-09 | B85: Solicitud de la renovación de la calificación de Instituciones de Educación Superior como Operadores de Capacitación por capacitación continua y competencias laborales | C85: 9.037 | D85: 10
A86: SETEC-014-05-07 | B86: Solicitud de renovación de la calificación de Instituciones de Educación Superior como Operadores de Capacitación como Operadores de Capacitación Continua | C86: 9.037 | D86: 10
A87: SETEC-014-05-08 | B87: Solicitud de renovación de la calificación de Instituciones de Educación Superior como Operadores de Capacitación por competencias laborales | C87: 9.037 | D87: 10
A88: SETEC-014-05-04 | B88: Solicitud de renovación de la calificación de Instituciones Públicas como Operadores de Capacitación Continua | C88: 9.037 | D88: 10
A89: SETEC-014-05-05 | B89: Solicitud de renovación de la calificación de Instituciones Públicas como Operadores de Capacitación por competencias laborales | C89: 9.037 | D89: 10
A90: SETEC-014-05-01 | B90: Solicitud de renovación de la calificación de Personas Naturales, Personas Jurídicas y Empresas Públicas como Operadores de Capacitación de Capacitación Continua | C90: 9.037 | D90: 10
A91: SETEC-014-05-03 | B91: Solicitud de renovación de la calificación de Personas Naturales, Personas Jurídicas y Empresas Públicas como Operadores de Capacitación por capacitación continua y competencias laborales | C91: 9.037 | D91: 10
A92: SETEC-014-05-02 | B92: Solicitud de renovación de la calificación de Personas Naturales, Personas Jurídicas y Empresas Públicas como Operadores de Capacitación por competencias laborales | C92: 9.037 | D92: 10
A93: SETEC-014-05-06 | B93: Solicitud de renovación de la calificación deInstituciones Públicas como Operadores de Capacitación por capacitación continua y competencias laborales | C93: 9.037 | D93: 10
A94: SETEC-016-01-05 | B94: Asistencia técnica en el proceso de calificación como capacitador independiente | C94: 9.25 | D94: 20
A95: SETEC-017-03-01 | B95: Solicitud de aprobación de productos comunicacionales | C95: 9.75 | D95: 20
A96: SETEC-014-04-04 | B96: Ampliación por incremento de instructores y/o cambio de coordiador pedagógico bajo las mismas áreas, especialidades, cursos o perfiles | C96: 11.4625 | D96: 20
A97: SETEC-017-01-01 | B97: Solicitud de asesoramiento técnico para el proceso de auditoría al cumplimiento de los estándares de calificación | C97: 11.5 | D97: 20
A98: SETEC-017-02-01 | B98: Solicitud de asesoramiento técnico para el proceso de auditoría al sistema de gestión de certificación de personas | C98: 11.5 | D98: 20
A99: SETEC-017-03-04 | B99: Solicitud de sellado de certificados emitidos por los operadores de capacitación de capacitación y organismos evaluadores de la conformidad | C99: 11.5 | D99: 20
A100: SETEC-014-04-01 | B100: Ampliación por nuevos cursos e instructores por capacitación continua | C100: 18.7125 | D100: 20
A101: SETEC-014-04-03 | B101: Ampliación por nuevos cursos e instructores por capacitación continua y competencias laborales | C101: 18.7125 | D101: 20
A102: SETEC-014-04-02 | B102: Ampliación por nuevos cursos e instructores por competencias laborales | C102: 18.7125 | D102: 20
A103: SETEC-014-03-03 | B103: Solicitud de modificación de la calificación de Instituciones de Educación Superior como Operadores de Capacitación | C103: 18.7125 | D103: 20
A104: SETEC-014-03-02 | B104: Solicitud de modificación de la calificación de Instituciones Públicas como Operadores de Capacitación | C104: 18.7125 | D104: 20
A105: SETEC-014-03-01 | B105: Solicitud de modificación de la calificación de Personas Naturales, Personas Jurídicas y Empresas Públicas como Operadores de Capacitación | C105: 18.7125 | D105: 20
A106: SETEC-017-01-03 | B106: Quejas y sugerencias sobre la prestacción de servicios de capacitación y certificación por parte de terceros | C106: 23.25 | D106: 20
A107: SETEC-015-01-06 | B107: Renovación al reconocimiento de organismos evaluadores de la conformidad de Instituciones de Educación Superior para brindar servicios de certificación de personas | C107: 25.087 | D107: 20
A108: SETEC-015-01-05 | B108: Renovación al reconocimiento de organismos evaluadores de la conformidad de personas jurídicas para brindar servicios de certificación de personas | C108: 25.087 | D108: 20
A109: SETEC-015-01-04 | B109: Renovación al reconocimiento de organismos evaluadores de la conformidad de personas naturales para brindar servicios de certificación de personas | C109: 25.087 | D109: 20
A110: SETEC-014-02-07 | B110: Calificación de Instituciones de Educación Superior como Operadores de Capacitación Continua | C110: 27.305 | D110: 20
A111: SETEC-014-02-08 | B111: Calificación de Instituciones de Educación Superior como Operadores de Capacitación por competencias laborales | C111: 27.305 | D111: 20
A112: SETEC-014-02-04 | B112: Calificación de Instituciones Públicas como Operadores de Capacitación Continua | C112: 27.305 | D112: 20
A113: SETEC-014-02-05 | B113: Calificación de Instituciones Públicas como Operadores de Capacitación por competencias laborales | C113: 27.305 | D113: 20
A114: SETEC-014-02-03 | B114: Calificación de Personas Naturales, Personas Jurídicas y Empresas Públicas como Operadores de Capacitación continua y competencias laborales | C114: 27.305 | D114: 20
A115: SETEC-014-02-01 | B115: Calificación de Personas Naturales, Personas Jurídicas y Empresas Públicas como Operadores de Capacitación de Capacitación Continua | C115: 27.305 | D115: 20
A116: SETEC-014-02-02 | B116: Calificación de Personas Naturales, Personas Jurídicas y Empresas Públicas como Operadores de Capacitación por competencias laborales | C116: 27.305 | D116: 20
A117: SETEC-015-01-07 | B117: Ampliación al reconocimiento de organismos evaluadores de la conformidad para brindar servicios de certificación de personas | C117: 30.504 | D117: 20
A118: SETEC-017-01-02 | B118: Solicitud de auditoría al cumplimiento de los estándares de calificación | C118: 31.5 | D118: 20
A119: SETEC-017-02-02 | B119: Solicitud de auditoría al cumplimiento del sistema de gestión de certificación de personas | C119: 31.5 | D119: 20
A120: SETEC-014-02-09 | B120: Calificación de Instituciones de Educación Superior como Operadores de Capacitación por capacitación continua y competencias laborales | C120: 32.305 | D120: 20
A121: SETEC-014-02-06 | B121: Calificación de Instituciones Públicas como Operadores de Capacitación por capacitación continua y competencias laborales | C121: 32.305 | D121: 20
A122: SETEC-015-01-03 | B122: Reconocimiento de organismos evaluadores de la conformidad de personas jurídicas para brindar servicios de certificación de personas | C122: 32.754 | D122: 20
A123: SETEC-015-01-01 | B123: Reconocimiento de personas naturales como organismos evaluadores de la conformidad para brindar servicios de certificación de personas | C123: 32.754 | D123: 20
A124: SETEC-015-01-08 | B124: Solicitud de modificación al reconocimiento de organismos evaluadores de la conformidad para brindar servicios de certificación de personas | C124: 38.004 | D124: 20
A125: SETEC-017-03-02 | B125: Quejas y sugerencias sobre el mal uso de marca SETEC por parte de terceros | C125: 41 | D125: 20
A126: SETEC-016-01-02 | B126: Renovación de la calificación como capacitador independiente | C126: 55.5 | D126: 20
A127: SETEC-009-02-01 | B127: Consulta de análisis y estudios sobre capacitación y certificación de personas | C127: 92 | D127: 20
A128: SETEC-016-01-03 | B128: Ampliación de la calificación como capacitador independiente | C128: 138 | D128: 20
A129: SETEC-016-01-01 | B129: Calificación como capacitador independiente | C129: 138 | D129: 20
A130: SETEC-012-01-01 | B130: Asesoramiento metodológico en la elaboración de diseños y estructuras curriculares | C130: 362.5 | D130: 20
A131: SETEC-010-02-01 | B131: Elaboración de esquemas para la certificación de personas bajo competencias laborales | C131: 460 | D131: 20
A132: SETEC-010-03-01 | B132: Elaborar instrumentos para la certificación de personas bajo competencias laborales | C132: 460 | D132: 20
A133: SETEC-010-01-02 | B133: Elaborar o actualizar perfiles ocupacionales para capacitación y certificación de personas por competancias laborales | C133: 460 | D133: 20
A134: SETEC-015-01-02 | B134: Reconocimiento de organismos evaluadores de la conformidad de Instituciones de Educación Superior para brindar servicios de certificación de personas | C134: 625.254 | D134: 20

Sheet TIEMPO DE RESPUESTA
A1: PRIORIZACIÓN DE TRÁMITES ADMINISTRATIVOS
A2: TIEMPO DE RESPUESTA
A4: IDENTIFICADOR | B4: TRÁMITE | C4: TIEMPO RESPUESTA (horas laborables) | D4: PUNTUACIÓN
A5: MT-021-01-01 | B5: Aprobación de planos para la construcción, habilitación de fábricas y/o campamentos | C5: 60 | D5: 30
A6: MT-048-01-05 | B6: Suscripción de actas transaccionales para instituciones privadas | C6: 40 | D6: 0
A7: MT-045-03-04 | B7: Aprobación de disolución de organizaciones sociales, fundaciones y microempresas asociativas | C7: 40 | D7: 0
A8: MT-045-01-02 | B8: Registro de la marginación de organizaciones laborales | C8: 40 | D8: 0
A9: MT-047-01-02 | B9: Resolución del pliego de peticiones con sentencia de segunda instancia | C9: 60 | D9: 30
A10: MT-045-02-07 | B10: Aprobación de disolución voluntaria de personería jurídica de organizaciones artesanales | C10: 40 | D10: 0
A11: MT-053-02-01 | B11: Legalización de documentos FEDESOMEC previo al inicio de cursos | C11: 16 | D11: 0
A12: MT-045-02-01 | B12: Registro de ingreso, retiro o exclusión de socios de las organizaciones artesanales | C12: 60 | D12: 30
A13: MT-046-01-02 | B13: Rehabilitación de personas con impedimento laboral en el servicio público a causa de retiro con compensación por retiro voluntario, venta de renuncia o figuras similares | C13: 24 | D13: 0
A14: MRL-015-01-03 | B14: Refrendación de títulos nuevos y canje de la Federación Ecuatoriana de Operadores y Mecánicos de Equipo Caminero (FEDESOMEC) | C14: 40 | D14: 0
A15: MT-048-03-02 | B15: Resolución de reclamación colectiva presentada por instituciones privadas por la falta de negociación del contrato colectivo | C15: 40 | D15: 0
A16: MT-046-01-08 | B16: Rehabilitación de personas con impedimento laboral en el servicio público a causa de interdicción judicial | C16: 24 | D16: 0
A17: MT-046-01-06 | B17: Rehabilitación de personas con impedimento laboral en el servicio público a causa de compra de renuncia con indemnización. | C17: 12 | D17: 0
A18: MT-046-01-01 | B18: Rehabilitación de impedidos para laborar en el servicio público por indemnización por supresión de puestos | C18: 40 | D18: 0
A19: MT-045-02-04 | B19: Registro de directivas de las organizaciones artesanales | C19: 40 | D19: 0
A20: MT-048-01-06 | B20: Suscripción de actas transaccionales para instituciones públicas para trabajadores bajo Código del Trabajo | C20: 40 | D20: 0
A21: MT-016-02-02 | B21: Aprobación de extensión de horarios de trabajo (Suplementarias y Extraordinarias) | C21: 24 | D21: 0
A22: MT-045-01-07 | B22: Aprobación de reformas a estatutos de organizaciones laborales | C22: 40 | D22: 0
A23: MT-045-03-05 | B23: Aprobación de reformas al estatuto de organizaciones sociales, fundaciones y microempresas asociativas | C23: 40 | D23: 0
A24: MT-048-03-01 | B24: Resolución de reclamación colectiva presentada por instituciones públicas por la falta de negociación del contrato colectivo bajo Código de Trabajo | C24: 40 | D24: 0
A25: MRL-015-01-02 | B25: Refrendación de títulos nuevos y canje de Centros de Formación Artesanal y Organizaciones Artesanales | C25: 16 | D25: 0
A26: MT-045-01-03 | B26: Registro de inclusión y/o exclusión de socios de organizaciones laborales | C26: 40 | D26: 0
A27: MT-045-02-05 | B27: Aprobación de estatutos y concesión de personería jurídica de organizaciones artesanales | C27: 30 | D27: 0
A28: MT-045-01-08 | B28: Aprobación de estatutos y personería jurídica en organizaciones laborales | C28: 30 | D28: 0
A29: MT-048-01-03 | B29: Suscripción de contratos colectivos para instituciones privadas | C29: 20 | D29: 0
A30: MT-045-02-06 | B30: Aprobación de reformas total y parcial de estatutos de organizaciones artesanales | C30: 40 | D30: 0
A31: MT-055-01-01 | B31: Aprobación de unificación de utilidades para empleadores del sector privado | C31: 40 | D31: 0
A32: MT-053-01-06 | B32: Legalización de documentos previo a la titulación artesanal bajo la modalidad propios derechos y convalidación profesional | C32: 16 | D32: 0
A33: MT-046-01-03 | B33: Rehabilitación de impedidos para laborar en el servicio público por destitución | C33: 40 | D33: 0
A34: MT-053-01-05 | B34: Legalización de documentos previo a la titulación artesanal bajo la modalidad practica profesional | C34: 16 | D34: 0
A35: MT-048-01-04 | B35: Suscripción de contrato colectivo para instituciones públicas para trabajadores bajo Código del Trabajo | C35: 20 | D35: 0
A36: MT-045-03-02 | B36: Registro de inclusión y/o exclusión de miembros en organizaciones sociales, fundaciones y microempresas asociativas | C36: 40 | D36: 0
A37: MT-045-03-06 | B37: Aprobación del estatuto y otorgamiento de la personalidad jurídica de organizaciones sociales, fundaciones y microempresas asociativas | C37: 30 | D37: 0
A38: MT-001-08-01 | B38: Emisión de copias certificadas de actos administrativos y normativos emitidos por el Ministerio del Trabajo | C38: 80 | D38: 30
A39: MT-045-01-01 | B39: Registro de directivas de organizaciones laborales | C39: 30 | D39: 0
A40: MT-016-02-01 | B40: Aprobación de horarios especiales de trabajo de empresas o instituciones bajo Código del Trabajo | C40: 24 | D40: 0
A41: MRL-008-02-01 | B41: Terminación de relación laboral a petición del empleador con visto bueno con suspensión de relación laboral | C41: 40 | D41: 0
A42: MT-047-01-01 | B42: Resolución del pliego de peticiones con sentencia de primera instancia | C42: 40 | D42: 0
A43: MT-045-03-01 | B43: Registro de directivas para organizaciones sociales, fundaciones y microempresas asociativas | C43: 40 | D43: 0
A44: MRL-005-01-01 | B44: Audiencia de diálogo social en la solución de conflictos colectivos | C44: 40 | D44: 0
A45: MT-034-10-01 | B45: Cálculo del valor correspondiente a la jubilación patronal para trabajadores de código de trabajo en el sector público | C45: 24 | D45: 0
A46: MRL-008-02-03 | B46: Terminación de relación laboral a petición del empleado con visto bueno | C46: 40 | D46: 0
A47: MT-049-04-02 | B47: Asistencia en el proceso integral de preselección de personal para instituciones públicas y empresas privadas a través del portal Red Socio Empleo | C47: 120 | D47: 30
A48: MRL-008-02-02 | B48: Terminación de relación laboral a petición del empleador con visto bueno sin suspensión de relación laboral | C48: 40 | D48: 0
A49: MT-040-01-01 | B49: Autorización laboral para extranjeros para trabajar en el sector público. | C49: 16 | D49: 0
A50: MT-030-03-01 | B50: Atención de denuncias laborables en el sector público | C50: 80 | D50: 30
A51: MT-034-10-02 | B51: Cálculo del valor correspondiente a la jubilación patronal para trabajadores del servicio privado | C51: 24 | D51: 0
A52: MT-005-02-01 | B52: Audiencia de mediación voluntaria para la solución de conflictos individuales de trabajo | C52: 80 | D52: 30
A53: MRL-012-01-01 | B53: Aprobación de reglamentos internos de trabajo | C53: 1.2 | D53: 0
A54: MT-054-01-01 | B54: Recuperación de claves y modificación de correo electrónico en el Sistema Único de Trabajo | C54: 0.5 | D54: 0
A55: MT-021-04-02 | B55: Registro de la Planificación de Capacitación del programa de Prevención de Riesgos Psicosociales | C55: 0.083 | D55: 0
A56: MT-021-01-03 | B56: Registro de Informe anual de actividades del comité paritario | C56: 48 | D56: 30
A57: MT-021-01-04 | B57: Aprobación de reglamentos de higiene y seguridad en el trabajo | C57: 60 | D57: 30
A58: MT-046-01-05 | B58: Rehabilitación de personas con impedimento laboral en el servicio público a causa de inhabilidad especial por mora. | C58: 40 | D58: 0
A59: MT-021-03-02 | B59: Registro de Promoción y Prevención de Salud en el Trabajo | C59: 0.083 | D59: 0
A60: MT-049-04-03 | B60: Asistencia en la preselección de personal para instituciones públicas y empresas privadas a través del portal Red Socio Empleo mediante el envío de hojas de vida | C60: 24 | D60: 0
A61: MT-021-04-01 | B61: Registro de Prevención de Amenazas Naturales y Riesgos Antrópicos | C61: 0.083 | D61: 0
A62: N/A | B62: Acceso a la Información Pública del Ministerio de Trabajo | C62: 40 | D62: 0
A63: MT-049-04-01 | B63: Publicación de ofertas laborales en el portal Red Socio Empleo a través de las cuentas de los empleadores | C63: 16 | D63: 0
A64: MT-044-04-01 | B64: Registro del pago de multas por sanciones | C64: 0.16 | D64: 0
A65: MT-021-01-06 | B65: Registro de programas de prevención de uso y consumo de drogas en espacios laborales y programa de prevención de riesgo psicosocial | C65: 0.083 | D65: 0
A66: MT-030-03-02 | B66: Atención de denuncias laborales en el sector privado | C66: 40 | D66: 0
A67: MT-021-01-02 | B67: Registro de organismos paritarios y sus renovaciones | C67: 48 | D67: 30
A68: MT-021-01-05 | B68: Registro de la declaración de los riesgos laborales y su plan de acción | C68: 0.167 | D68: 0
A69: MT-021-02-03 | B69: Registro de trabajadores capacitados en materia de seguridad y salud en el trabajo. | C69: 0.083 | D69: 0
A70: MRL-001-01-08 | B70: Emisión de oficio de validación de no tener impedimento para ejercer cargo público a la fecha | C70: 8 | D70: 0
A71: MT-021-02-02 | B71: Registro de capacitaciones realizadas en materia de seguridad y salud en el trabajo | C71: 0.083 | D71: 0
A72: MT-044-03-11 | B72: Registro del pago de decimotercera y decimocuarta remuneración para el servicio doméstico | C72: 0.016 | D72: 0
A73: MT-021-02-01 | B73: Registro de la planificación de capacitaciones en materia de seguridad y salud en el trabajo | C73: 0.083 | D73: 0
A74: MT-021-03-01 | B74: Registro de Vigilancia de la Salud | C74: 0.083 | D74: 0
A75: MT-044-03-10 | B75: Registro del pago de Participación de Utilidades | C75: 0.016 | D75: 0
A76: MRL-001-01-03 | B76: Emisión de certificado de no tener impedimento para ejercer cargo público para extranjeros no residentes | C76: 24 | D76: 0
A77: MT-044-03-12 | B77: Registro del pago de decimocuarta remuneración | C77: 0.016 | D77: 0
A78: MRL-001-01-09 | B78: Emisión de certificado de relación de dependencia laboral con el sector público | C78: 0.033 | D78: 0
A79: MT-044-03-06 | B79: Registro del pago de decimotercera remuneración | C79: 0.016 | D79: 0
A80: MT-044-05-01 | B80: Registro de datos de trabajador para la vinculación laboral | C80: 0.016 | D80: 0
A81: MT-044-05-02 | B81: Registro de actas de finiquito | C81: 0.016 | D81: 0
A82: MRL-001-01-01 | B82: Emisión de certificado de no tener impedimento para ejercer cargo público para ecuatorianos y extranjeros residentes | C82: 0.167 | D82: 0
A83: SETEC-014-04-04 | B83: Ampliación por incremento de instructores y/o cambio de coordiador pedagógico bajo las mismas áreas, especialidades, cursos o perfiles | C83: 0.5 | D83: 0
A84: SETEC-016-01-04 | B84: Emisión de credenciales de capacitador independiente | C84: 0.2 | D84: 0
A85: SETEC-014-05-09 | B85: Solicitud de la renovación de la calificación de Instituciones de Educación Superior como Operadores de Capacitación por capacitación continua y competencias laborales | C85: 0.3 | D85: 0
A86: SETEC-015-01-08 | B86: Solicitud de modificación al reconocimiento de organismos evaluadores de la conformidad para brindar servicios de certificación de personas | C86: 8 | D86: 0
A87: SETEC-014-05-08 | B87: Solicitud de renovación de la calificación de Instituciones de Educación Superior como Operadores de Capacitación por competencias laborales | C87: 0.3 | D87: 0
A88: SETEC-014-05-04 | B88: Solicitud de renovación de la calificación de Instituciones Públicas como Operadores de Capacitación Continua | C88: 0.3 | D88: 0
A89: SETEC-014-05-05 | B89: Solicitud de renovación de la calificación de Instituciones Públicas como Operadores de Capacitación por competencias laborales | C89: 0.3 | D89: 0
A90: SETEC-014-05-06 | B90: Solicitud de renovación de la calificación deInstituciones Públicas como Operadores de Capacitación por capacitación continua y competencias laborales | C90: 0.3 | D90: 0
A91: SETEC-015-01-01 | B91: Reconocimiento de personas naturales como organismos evaluadores de la conformidad para brindar servicios de certificación de personas | C91: 3 | D91: 0
A92: SETEC-014-03-03 | B92: Solicitud de modificación de la calificación de Instituciones de Educación Superior como Operadores de Capacitación | C92: 2 | D92: 0
A93: SETEC-014-05-07 | B93: Solicitud de renovación de la calificación de Instituciones de Educación Superior como Operadores de Capacitación como Operadores de Capacitación Continua | C93: 0.3 | D93: 0
A94: SETEC-014-04-02 | B94: Ampliación por nuevos cursos e instructores por competencias laborales | C94: 2 | D94: 0
A95: SETEC-014-02-08 | B95: Calificación de Instituciones de Educación Superior como Operadores de Capacitación por competencias laborales | C95: 3 | D95: 0
A96: SETEC-014-02-05 | B96: Calificación de Instituciones Públicas como Operadores de Capacitación por competencias laborales | C96: 2 | D96: 0
A97: SETEC-015-01-06 | B97: Renovación al reconocimiento de organismos evaluadores de la conformidad de Instituciones de Educación Superior para brindar servicios de certificación de personas | C97: 3 | D97: 0
A98: SETEC-015-01-04 | B98: Renovación al reconocimiento de organismos evaluadores de la conformidad de personas naturales para brindar servicios de certificación de personas | C98: 3 | D98: 0
A99: SETEC-014-03-02 | B99: Solicitud de modificación de la calificación de Instituciones Públicas como Operadores de Capacitación | C99: 2 | D99: 0
A100: SETEC-014-05-02 | B100: Solicitud de renovación de la calificación de Personas Naturales, Personas Jurídicas y Empresas Públicas como Operadores de Capacitación por competencias laborales | C100: 0.3 | D100: 0
A101: SETEC-015-01-02 | B101: Reconocimiento de organismos evaluadores de la conformidad de Instituciones de Educación Superior para brindar servicios de certificación de personas | C101: 3 | D101: 0
A102: SETEC-017-01-02 | B102: Solicitud de auditoría al cumplimiento de los estándares de calificación | C102: 1 | D102: 0
A103: SETEC-017-02-02 | B103: Solicitud de auditoría al cumplimiento del sistema de gestión de certificación de personas | C103: 1 | D103: 0
A104: SETEC-017-01-03 | B104: Quejas y sugerencias sobre la prestacción de servicios de capacitación y certificación por parte de terceros | C104: 3 | D104: 0
A105: SETEC-014-02-02 | B105: Calificación de Personas Naturales, Personas Jurídicas y Empresas Públicas como Operadores de Capacitación por competencias laborales | C105: 2 | D105: 0
A106: SETEC-014-02-04 | B106: Calificación de Instituciones Públicas como Operadores de Capacitación Continua | C106: 2 | D106: 0
A107: SETEC-010-01-02 | B107: Elaborar o actualizar perfiles ocupacionales para capacitación y certificación de personas por competancias laborales | C107: 40 | D107: 0
A108: SETEC-015-01-03 | B108: Reconocimiento de organismos evaluadores de la conformidad de personas jurídicas para brindar servicios de certificación de personas | C108: 3 | D108: 0
A109: SETEC-014-03-01 | B109: Solicitud de modificación de la calificación de Personas Naturales, Personas Jurídicas y Empresas Públicas como Operadores de Capacitación | C109: 2 | D109: 0
A110: SETEC-015-01-05 | B110: Renovación al reconocimiento de organismos evaluadores de la conformidad de personas jurídicas para brindar servicios de certificación de personas | C110: 3 | D110: 0
A111: SETEC-014-02-07 | B111: Calificación de Instituciones de Educación Superior como Operadores de Capacitación Continua | C111: 2 | D111: 0
A112: SETEC-014-05-01 | B112: Solicitud de renovación de la calificación de Personas Naturales, Personas Jurídicas y Empresas Públicas como Operadores de Capacitación de Capacitación Continua | C112: 0.3 | D112: 0
A113: SETEC-014-02-09 | B113: Calificación de Instituciones de Educación Superior como Operadores de Capacitación por capacitación continua y competencias laborales | C113: 3 | D113: 0
A114: SETEC-016-01-02 | B114: Renovación de la calificación como capacitador independiente | C114: 15 | D114: 0
A115: SETEC-014-05-03 | B115: Solicitud de renovación de la calificación de Personas Naturales, Personas Jurídicas y Empresas Públicas como Operadores de Capacitación por capacitación continua y competencias laborales | C115: 0.3 | D115: 0
A116: SETEC-014-02-06 | B116: Calificación de Instituciones Públicas como Operadores de Capacitación por capacitación continua y competencias laborales | C116: 3 | D116: 0
A117: SETEC-017-03-02 | B117: Quejas y sugerencias sobre el mal uso de marca SETEC por parte de terceros | C117: 2 | D117: 0
A118: SETEC-010-02-01 | B118: Elaboración de esquemas para la certificación de personas bajo competencias laborales | C118: 40 | D118: 0
A119: SETEC-010-03-01 | B119: Elaborar instrumentos para la certificación de personas bajo competencias laborales | C119: 40 | D119: 0
A120: SETEC-014-04-03 | B120: Ampliación por nuevos cursos e instructores por capacitación continua y competencias laborales | C120: 2 | D120: 0
A121: SETEC-017-02-01 | B121: Solicitud de asesoramiento técnico para el proceso de auditoría al sistema de gestión de certificación de personas | C121: 1 | D121: 0
A122: SETEC-017-01-01 | B122: Solicitud de asesoramiento técnico para el proceso de auditoría al cumplimiento de los estándares de calificación | C122: 1 | D122: 0
A123: SETEC-014-04-01 | B123: Ampliación por nuevos cursos e instructores por capacitación continua | C123: 2 | D123: 0
A124: SETEC-012-01-01 | B124: Asesoramiento metodológico en la elaboración de diseños y estructuras curriculares | C124: 1 | D124: 0
A125: SETEC-016-01-03 | B125: Ampliación de la calificación como capacitador independiente | C125: 48 | D125: 30
A126: SETEC-015-01-09 | B126: Asistencia técnica en el proceso de reconocimiento de organismos certificadores de personas | C126: 1 | D126: 0
A127: SETEC-015-01-07 | B127: Ampliación al reconocimiento de organismos evaluadores de la conformidad para brindar servicios de certificación de personas | C127: 3 | D127: 0
A128: SETEC-014-02-01 | B128: Calificación de Personas Naturales, Personas Jurídicas y Empresas Públicas como Operadores de Capacitación de Capacitación Continua | C128: 2 | D128: 0
A129: SETEC-014-02-03 | B129: Calificación de Personas Naturales, Personas Jurídicas y Empresas Públicas como Operadores de Capacitación continua y competencias laborales | C129: 2 | D129: 0
A130: SETEC-016-01-01 | B130: Calificación como capacitador independiente | C130: 48 | D130: 30
A131: SETEC-017-03-01 | B131: Solicitud de aprobación de productos comunicacionales | C131: 0.3 | D131: 0
A132: SETEC-016-01-05 | B132: Asistencia técnica en el proceso de calificación como capacitador independiente | C132: 0.1 | D132: 0
A133: SETEC-017-03-04 | B133: Solicitud de sellado de certificados emitidos por los operadores de capacitación de capacitación y organismos evaluadores de la conformidad | C133: 1 | D133: 0
A134: SETEC-009-02-01 | B134: Consulta de análisis y estudios sobre capacitación y certificación de personas | C134: 8 | D134: 0

Sheet CANAL ATENCIÓN
A1: PRIORIZACIÓN DE TRÁMITES ADMINISTRATIVOS
A2: CANAL DE ATENCIÓN
I3: Totalmente en Línea | L3: 0
A4: IDENTIFICADOR | B4: TRÁMITE | C4: CANAL ATENCIÓN | D4: PUNTUACIÓN | I4: No se completa totalmente en línea. | L4: 10
A5: MT-021-01-01 | B5: Aprobación de planos para la construcción, habilitación de fábricas y/o campamentos | C5: No se completa totalmente en línea. | D5: =IF(ISBLANK(C5),"",IF(C5="Totalmente en línea",0,IF(C5="Inicia en línea",6,10))) -> 10
A6: MT-048-01-05 | B6: Suscripción de actas transaccionales para instituciones privadas | C6: No se completa totalmente en línea. | D6: =IF(ISBLANK(C6),"",IF(C6="Totalmente en línea",0,IF(C6="Inicia en línea",6,10))) -> 10
A7: MT-045-03-04 | B7: Aprobación de disolución de organizaciones sociales, fundaciones y microempresas asociativas | C7: Totalmente en Línea | D7: 0
A8: MT-045-01-02 | B8: Registro de la marginación de organizaciones laborales | C8: Totalmente en Línea | D8: 0
A9: MT-047-01-02 | B9: Resolución del pliego de peticiones con sentencia de segunda instancia | C9: No se completa totalmente en línea. | D9: 10
A10: MT-045-02-07 | B10: Aprobación de disolución voluntaria de personería jurídica de organizaciones artesanales | C10: Totalmente en Línea | D10: 0
A11: MT-053-02-01 | B11: Legalización de documentos FEDESOMEC previo al inicio de cursos | C11: Totalmente en Línea | D11: 0
A12: MT-045-02-01 | B12: Registro de ingreso, retiro o exclusión de socios de las organizaciones artesanales | C12: Totalmente en Línea | D12: 0
A13: MT-046-01-02 | B13: Rehabilitación de personas con impedimento laboral en el servicio público a causa de retiro con compensación por retiro voluntario, venta de renuncia o figuras similares | C13: Totalmente en Línea | D13: 0
A14: MRL-015-01-03 | B14: Refrendación de títulos nuevos y canje de la Federación Ecuatoriana de Operadores y Mecánicos de Equipo Caminero (FEDESOMEC) | C14: Totalmente en Línea | D14: 0
A15: MT-048-03-02 | B15: Resolución de reclamación colectiva presentada por instituciones privadas por la falta de negociación del contrato colectivo | C15: Totalmente en Línea | D15: 0
A16: MT-046-01-08 | B16: Rehabilitación de personas con impedimento laboral en el servicio público a causa de interdicción judicial | C16: Totalmente en Línea | D16: 0
A17: MT-046-01-06 | B17: Rehabilitación de personas con impedimento laboral en el servicio público a causa de compra de renuncia con indemnización. | C17: Totalmente en Línea | D17: 0
A18: MT-046-01-01 | B18: Rehabilitación de impedidos para laborar en el servicio público por indemnización por supresión de puestos | C18: Totalmente en Línea | D18: 0
A19: MT-045-02-04 | B19: Registro de directivas de las organizaciones artesanales | C19: Totalmente en Línea | D19: 0
A20: MT-048-01-06 | B20: Suscripción de actas transaccionales para instituciones públicas para trabajadores bajo Código del Trabajo | C20: Totalmente en Línea | D20: 0
A21: MT-016-02-02 | B21: Aprobación de extensión de horarios de trabajo (Suplementarias y Extraordinarias) | C21: Totalmente en Línea | D21: 0
A22: MT-045-01-07 | B22: Aprobación de reformas a estatutos de organizaciones laborales | C22: Totalmente en Línea | D22: 0
A23: MT-045-03-05 | B23: Aprobación de reformas al estatuto de organizaciones sociales, fundaciones y microempresas asociativas | C23: Totalmente en Línea | D23: 0
A24: MT-048-03-01 | B24: Resolución de reclamación colectiva presentada por instituciones públicas por la falta de negociación del contrato colectivo bajo Código de Trabajo | C24: Totalmente en Línea | D24: 0
A25: MRL-015-01-02 | B25: Refrendación de títulos nuevos y canje de Centros de Formación Artesanal y Organizaciones Artesanales | C25: Totalmente en Línea | D25: 0
A26: MT-045-01-03 | B26: Registro de inclusión y/o exclusión de socios de organizaciones laborales | C26: Totalmente en Línea | D26: 0
A27: MT-045-02-05 | B27: Aprobación de estatutos y concesión de personería jurídica de organizaciones artesanales | C27: Totalmente en Línea | D27: 0
A28: MT-045-01-08 | B28: Aprobación de estatutos y personería jurídica en organizaciones laborales | C28: Totalmente en Línea | D28: 0
A29: MT-048-01-03 | B29: Suscripción de contratos colectivos para instituciones privadas | C29: Totalmente en Línea | D29: 0
A30: MT-045-02-06 | B30: Aprobación de reformas total y parcial de estatutos de organizaciones artesanales | C30: Totalmente en Línea | D30: 0
A31: MT-055-01-01 | B31: Aprobación de unificación de utilidades para empleadores del sector privado | C31: Totalmente en Línea | D31: 0
A32: MT-053-01-06 | B32: Legalización de documentos previo a la titulación artesanal bajo la modalidad propios derechos y convalidación profesional | C32: Totalmente en Línea | D32: 0
A33: MT-046-01-03 | B33: Rehabilitación de impedidos para laborar en el servicio público por destitución | C33: Totalmente en Línea | D33: 0
A34: MT-053-01-05 | B34: Legalización de documentos previo a la titulación artesanal bajo la modalidad practica profesional | C34: Totalmente en Línea | D34: 0
A35: MT-048-01-04 | B35: Suscripción de contrato colectivo para instituciones públicas para trabajadores bajo Código del Trabajo | C35: Totalmente en Línea | D35: 0
A36: MT-045-03-02 | B36: Registro de inclusión y/o exclusión de miembros en organizaciones sociales, fundaciones y microempresas asociativas | C36: Totalmente en Línea | D36: 0
A37: MT-045-03-06 | B37: Aprobación del estatuto y otorgamiento de la personalidad jurídica de organizaciones sociales, fundaciones y microempresas asociativas | C37: Totalmente en Línea | D37: 0
A38: MT-001-08-01 | B38: Emisión de copias certificadas de actos administrativos y normativos emitidos por el Ministerio del Trabajo | C38: Totalmente en Línea | D38: 0
A39: MT-045-01-01 | B39: Registro de directivas de organizaciones laborales | C39: Totalmente en Línea | D39: 0
A40: MT-016-02-01 | B40: Aprobación de horarios especiales de trabajo de empresas o instituciones bajo Código del Trabajo | C40: Totalmente en Línea | D40: 0
A41: MRL-008-02-01 | B41: Terminación de relación laboral a petición del empleador con visto bueno con suspensión de relación laboral | C41: Totalmente en Línea | D41: 0
A42: MT-047-01-01 | B42: Resolución del pliego de peticiones con sentencia de primera instancia | C42: Totalmente en Línea | D42: 0
A43: MT-045-03-01 | B43: Registro de directivas para organizaciones sociales, fundaciones y microempresas asociativas | C43: Totalmente en Línea | D43: 0
A44: MRL-005-01-01 | B44: Audiencia de diálogo social en la solución de conflictos colectivos | C44: No se completa totalmente en línea. | D44: 10
A45: MT-034-10-01 | B45: Cálculo del valor correspondiente a la jubilación patronal para trabajadores de código de trabajo en el sector público | C45: Totalmente en Línea | D45: 0
A46: MRL-008-02-03 | B46: Terminación de relación laboral a petición del empleado con visto bueno | C46: Totalmente en Línea | D46: 0
A47: MT-049-04-02 | B47: Asistencia en el proceso integral de preselección de personal para instituciones públicas y empresas privadas a través del portal Red Socio Empleo | C47: Totalmente en Línea | D47: 0
A48: MRL-008-02-02 | B48: Terminación de relación laboral a petición del empleador con visto bueno sin suspensión de relación laboral | C48: Totalmente en Línea | D48: 0
A49: MT-040-01-01 | B49: Autorización laboral para extranjeros para trabajar en el sector público. | C49: Totalmente en Línea | D49: 0
A50: MT-030-03-01 | B50: Atención de denuncias laborables en el sector público | C50: No se completa totalmente en línea. | D50: 10
A51: MT-034-10-02 | B51: Cálculo del valor correspondiente a la jubilación patronal para trabajadores del servicio privado | C51: Totalmente en Línea | D51: 0
A52: MT-005-02-01 | B52: Audiencia de mediación voluntaria para la solución de conflictos individuales de trabajo | C52: Totalmente en Línea | D52: 0
A53: MRL-012-01-01 | B53: Aprobación de reglamentos internos de trabajo | C53: Totalmente en Línea | D53: 0
A54: MT-054-01-01 | B54: Recuperación de claves y modificación de correo electrónico en el Sistema Único de Trabajo | C54: Totalmente en Línea | D54: 0
A55: MT-021-04-02 | B55: Registro de la Planificación de Capacitación del programa de Prevención de Riesgos Psicosociales | C55: Totalmente en Línea | D55: 0
A56: MT-021-01-03 | B56: Registro de Informe anual de actividades del comité paritario | C56: Totalmente en Línea | D56: 0
A57: MT-021-01-04 | B57: Aprobación de reglamentos de higiene y seguridad en el trabajo | C57: Totalmente en Línea | D57: 0
A58: MT-046-01-05 | B58: Rehabilitación de personas con impedimento laboral en el servicio público a causa de inhabilidad especial por mora. | C58: Totalmente en Línea | D58: 0
A59: MT-021-03-02 | B59: Registro de Promoción y Prevención de Salud en el Trabajo | C59: Totalmente en Línea | D59: 0
A60: MT-049-04-03 | B60: Asistencia en la preselección de personal para instituciones públicas y empresas privadas a través del portal Red Socio Empleo mediante el envío de hojas de vida | C60: Totalmente en Línea | D60: 0
A61: MT-021-04-01 | B61: Registro de Prevención de Amenazas Naturales y Riesgos Antrópicos | C61: Totalmente en Línea | D61: 0
A62: N/A | B62: Acceso a la Información Pública del Ministerio de Trabajo | C62: Totalmente en Línea | D62: 0
A63: MT-049-04-01 | B63: Publicación de ofertas laborales en el portal Red Socio Empleo a través de las cuentas de los empleadores | C63: Totalmente en Línea | D63: 0
A64: MT-044-04-01 | B64: Registro del pago de multas por sanciones | C64: No se completa totalmente en línea. | D64: 10
A65: MT-021-01-06 | B65: Registro de programas de prevención de uso y consumo de drogas en espacios laborales y programa de prevención de riesgo psicosocial | C65: Totalmente en Línea | D65: 0
A66: MT-030-03-02 | B66: Atención de denuncias laborales en el sector privado | C66: No se completa totalmente en línea. | D66: 10
A67: MT-021-01-02 | B67: Registro de organismos paritarios y sus renovaciones | C67: Totalmente en Línea | D67: 0
A68: MT-021-01-05 | B68: Registro de la declaración de los riesgos laborales y su plan de acción | C68: Totalmente en Línea | D68: 0
A69: MT-021-02-03 | B69: Registro de trabajadores capacitados en materia de seguridad y salud en el trabajo. | C69: Totalmente en Línea | D69: 0
A70: MRL-001-01-08 | B70: Emisión de oficio de validación de no tener impedimento para ejercer cargo público a la fecha | C70: Totalmente en Línea | D70: =IF(ISBLANK(C70),"",IF(C70="Totalmente en línea",0,IF(C70="Inicia en línea",6,10))) -> 0
A71: MT-021-02-02 | B71: Registro de capacitaciones realizadas en materia de seguridad y salud en el trabajo | C71: Totalmente en Línea | D71: 0
A72: MT-044-03-11 | B72: Registro del pago de decimotercera y decimocuarta remuneración para el servicio doméstico | C72: Totalmente en Línea | D72: 0
A73: MT-021-02-01 | B73: Registro de la planificación de capacitaciones en materia de seguridad y salud en el trabajo | C73: Totalmente en Línea | D73: 0
A74: MT-021-03-01 | B74: Registro de Vigilancia de la Salud | C74: Totalmente en Línea | D74: 0
A75: MT-044-03-10 | B75: Registro del pago de Participación de Utilidades | C75: Totalmente en Línea | D75: 0
A76: MRL-001-01-03 | B76: Emisión de certificado de no tener impedimento para ejercer cargo público para extranjeros no residentes | C76: Totalmente en Línea | D76: 0
A77: MT-044-03-12 | B77: Registro del pago de decimocuarta remuneración | C77: Totalmente en Línea | D77: 0
A78: MRL-001-01-09 | B78: Emisión de certificado de relación de dependencia laboral con el sector público | C78: Totalmente en Línea | D78: 0
A79: MT-044-03-06 | B79: Registro del pago de decimotercera remuneración | C79: Totalmente en Línea | D79: 0
A80: MT-044-05-01 | B80: Registro de datos de trabajador para la vinculación laboral | C80: Totalmente en Línea | D80: 0
A81: MT-044-05-02 | B81: Registro de actas de finiquito | C81: Totalmente en Línea | D81: 0
A82: MRL-001-01-01 | B82: Emisión de certificado de no tener impedimento para ejercer cargo público para ecuatorianos y extranjeros residentes | C82: Totalmente en Línea | D82: 0
A83: SETEC-014-04-04 | B83: Ampliación por incremento de instructores y/o cambio de coordiador pedagógico bajo las mismas áreas, especialidades, cursos o perfiles | C83: No se completa totalmente en línea. | D83: =IF(ISBLANK(C83),"",IF(C83="Totalmente en línea",0,IF(C83="Inicia en línea",6,10))) -> 10
A84: SETEC-016-01-04 | B84: Emisión de credenciales de capacitador independiente | C84: No se completa totalmente en línea. | D84: =IF(ISBLANK(C84),"",IF(C84="Totalmente en línea",0,IF(C84="Inicia en línea",6,10))) -> 10
A85: SETEC-014-05-09 | B85: Solicitud de la renovación de la calificación de Instituciones de Educación Superior como Operadores de Capacitación por capacitación continua y competencias laborales | C85: No se completa totalmente en línea. | D85: 10
A86: SETEC-015-01-08 | B86: Solicitud de modificación al reconocimiento de organismos evaluadores de la conformidad para brindar servicios de certificación de personas | C86: No se completa totalmente en línea. | D86: 10
A87: SETEC-014-05-08 | B87: Solicitud de renovación de la calificación de Instituciones de Educación Superior como Operadores de Capacitación por competencias laborales | C87: No se completa totalmente en línea. | D87: 10
A88: SETEC-014-05-04 | B88: Solicitud de renovación de la calificación de Instituciones Públicas como Operadores de Capacitación Continua | C88: No se completa totalmente en línea. | D88: 10
A89: SETEC-014-05-05 | B89: Solicitud de renovación de la calificación de Instituciones Públicas como Operadores de Capacitación por competencias laborales | C89: No se completa totalmente en línea. | D89: 10
A90: SETEC-014-05-06 | B90: Solicitud de renovación de la calificación deInstituciones Públicas como Operadores de Capacitación por capacitación continua y competencias laborales | C90: No se completa totalmente en línea. | D90: 10
A91: SETEC-015-01-01 | B91: Reconocimiento de personas naturales como organismos evaluadores de la conformidad para brindar servicios de certificación de personas | C91: No se completa totalmente en línea. | D91: 10
A92: SETEC-014-03-03 | B92: Solicitud de modificación de la calificación de Instituciones de Educación Superior como Operadores de Capacitación | C92: No se completa totalmente en línea. | D92: 10
A93: SETEC-014-05-07 | B93: Solicitud de renovación de la calificación de Instituciones de Educación Superior como Operadores de Capacitación como Operadores de Capacitación Continua | C93: No se completa totalmente en línea. | D93: 10
A94: SETEC-014-04-02 | B94: Ampliación por nuevos cursos e instructores por competencias laborales | C94: No se completa totalmente en línea. | D94: 10
A95: SETEC-014-02-08 | B95: Calificación de Instituciones de Educación Superior como Operadores de Capacitación por competencias laborales | C95: No se completa totalmente en línea. | D95: 10
A96: SETEC-014-02-05 | B96: Calificación de Instituciones Públicas como Operadores de Capacitación por competencias laborales | C96: No se completa totalmente en línea. | D96: 10
A97: SETEC-015-01-06 | B97: Renovación al reconocimiento de organismos evaluadores de la conformidad de Instituciones de Educación Superior para brindar servicios de certificación de personas | C97: No se completa totalmente en línea. | D97: 10
A98: SETEC-015-01-04 | B98: Renovación al reconocimiento de organismos evaluadores de la conformidad de personas naturales para brindar servicios de certificación de personas | C98: No se completa totalmente en línea. | D98: 10
A99: SETEC-014-03-02 | B99: Solicitud de modificación de la calificación de Instituciones Públicas como Operadores de Capacitación | C99: No se completa totalmente en línea. | D99: 10
A100: SETEC-014-05-02 | B100: Solicitud de renovación de la calificación de Personas Naturales, Personas Jurídicas y Empresas Públicas como Operadores de Capacitación por competencias laborales | C100: No se completa totalmente en línea. | D100: 10
A101: SETEC-015-01-02 | B101: Reconocimiento de organismos evaluadores de la conformidad de Instituciones de Educación Superior para brindar servicios de certificación de personas | C101: No se completa totalmente en línea. | D101: 10
A102: SETEC-017-01-02 | B102: Solicitud de auditoría al cumplimiento de los estándares de calificación | C102: No se completa totalmente en línea. | D102: 10
A103: SETEC-017-02-02 | B103: Solicitud de auditoría al cumplimiento del sistema de gestión de certificación de personas | C103: No se completa totalmente en línea. | D103: 10
A104: SETEC-017-01-03 | B104: Quejas y sugerencias sobre la prestacción de servicios de capacitación y certificación por parte de terceros | C104: Totalmente en Línea | D104: 0
A105: SETEC-014-02-02 | B105: Calificación de Personas Naturales, Personas Jurídicas y Empresas Públicas como Operadores de Capacitación por competencias laborales | C105: No se completa totalmente en línea. | D105: 10
A106: SETEC-014-02-04 | B106: Calificación de Instituciones Públicas como Operadores de Capacitación Continua | C106: No se completa totalmente en línea. | D106: 10
A107: SETEC-010-01-02 | B107: Elaborar o actualizar perfiles ocupacionales para capacitación y certificación de personas por competancias laborales | C107: No se completa totalmente en línea. | D107: 10
A108: SETEC-015-01-03 | B108: Reconocimiento de organismos evaluadores de la conformidad de personas jurídicas para brindar servicios de certificación de personas | C108: No se completa totalmente en línea. | D108: 10
A109: SETEC-014-03-01 | B109: Solicitud de modificación de la calificación de Personas Naturales, Personas Jurídicas y Empresas Públicas como Operadores de Capacitación | C109: No se completa totalmente en línea. | D109: 10
A110: SETEC-015-01-05 | B110: Renovación al reconocimiento de organismos evaluadores de la conformidad de personas jurídicas para brindar servicios de certificación de personas | C110: No se completa totalmente en línea. | D110: 10
A111: SETEC-014-02-07 | B111: Calificación de Instituciones de Educación Superior como Operadores de Capacitación Continua | C111: No se completa totalmente en línea. | D111: 10
A112: SETEC-014-05-01 | B112: Solicitud de renovación de la calificación de Personas Naturales, Personas Jurídicas y Empresas Públicas como Operadores de Capacitación de Capacitación Continua | C112: No se completa totalmente en línea. | D112: 10
A113: SETEC-014-02-09 | B113: Calificación de Instituciones de Educación Superior como Operadores de Capacitación por capacitación continua y competencias laborales | C113: No se completa totalmente en línea. | D113: 10
A114: SETEC-016-01-02 | B114: Renovación de la calificación como capacitador independiente | C114: Totalmente en Línea | D114: 0
A115: SETEC-014-05-03 | B115: Solicitud de renovación de la calificación de Personas Naturales, Personas Jurídicas y Empresas Públicas como Operadores de Capacitación por capacitación continua y competencias laborales | C115: No se completa totalmente en línea. | D115: 10
A116: SETEC-014-02-06 | B116: Calificación de Instituciones Públicas como Operadores de Capacitación por capacitación continua y competencias laborales | C116: No se completa totalmente en línea. | D116: 10
A117: SETEC-017-03-02 | B117: Quejas y sugerencias sobre el mal uso de marca SETEC por parte de terceros | C117: Totalmente en Línea | D117: 0
A118: SETEC-010-02-01 | B118: Elaboración de esquemas para la certificación de personas bajo competencias laborales | C118: No se completa totalmente en línea. | D118: 10
A119: SETEC-010-03-01 | B119: Elaborar instrumentos para la certificación de personas bajo competencias laborales | C119: No se completa totalmente en línea. | D119: 10
A120: SETEC-014-04-03 | B120: Ampliación por nuevos cursos e instructores por capacitación continua y competencias laborales | C120: No se completa totalmente en línea. | D120: 10
A121: SETEC-017-02-01 | B121: Solicitud de asesoramiento técnico para el proceso de auditoría al sistema de gestión de certificación de personas | C121: No se completa totalmente en línea. | D121: 10
A122: SETEC-017-01-01 | B122: Solicitud de asesoramiento técnico para el proceso de auditoría al cumplimiento de los estándares de calificación | C122: No se completa totalmente en línea. | D122: 10
A123: SETEC-014-04-01 | B123: Ampliación por nuevos cursos e instructores por capacitación continua | C123: No se completa totalmente en línea. | D123: 10
A124: SETEC-012-01-01 | B124: Asesoramiento metodológico en la elaboración de diseños y estructuras curriculares | C124: Totalmente en Línea | D124: 0
A125: SETEC-016-01-03 | B125: Ampliación de la calificación como capacitador independiente | C125: Totalmente en Línea | D125: 0
A126: SETEC-015-01-09 | B126: Asistencia técnica en el proceso de reconocimiento de organismos certificadores de personas | C126: No se completa totalmente en línea. | D126: 10
A127: SETEC-015-01-07 | B127: Ampliación al reconocimiento de organismos evaluadores de la conformidad para brindar servicios de certificación de personas | C127: No se completa totalmente en línea. | D127: 10
A128: SETEC-014-02-01 | B128: Calificación de Personas Naturales, Personas Jurídicas y Empresas Públicas como Operadores de Capacitación de Capacitación Continua | C128: No se completa totalmente en línea. | D128: 10
A129: SETEC-014-02-03 | B129: Calificación de Personas Naturales, Personas Jurídicas y Empresas Públicas como Operadores de Capacitación continua y competencias laborales | C129: No se completa totalmente en línea. | D129: 10
A130: SETEC-016-01-01 | B130: Calificación como capacitador independiente | C130: Totalmente en Línea | D130: 0
A131: SETEC-017-03-01 | B131: Solicitud de aprobación de productos comunicacionales | C131: Totalmente en Línea | D131: 0
A132: SETEC-016-01-05 | B132: Asistencia técnica en el proceso de calificación como capacitador independiente | C132: No se completa totalmente en línea. | D132: 10
A133: SETEC-017-03-04 | B133: Solicitud de sellado de certificados emitidos por los operadores de capacitación de capacitación y organismos evaluadores de la conformidad | C133: Totalmente en Línea | D133: 0
A134: SETEC-009-02-01 | B134: Consulta de análisis y estudios sobre capacitación y certificación de personas | C134: Totalmente en Línea | D134: 0

Sheet RESUMEN
C1: BÁSICOS | H1: ADICIONALES
A2: ID trámite | B2: Nombre del trámite | C2: Demanda | D2: Quejas | E2: Costo para administración | F2: Tiempo de respuesta | G2: Canal de atención | H2: Necesidades ciudadanas | J2: Susceptibilidad a corrupción | L2: Volumen de devoluciones | N2: PUNTAJE TOTAL
H3: Criterio | I3: Puntuación | J3: Criterio | K3: Puntuación | L3: Criterio | M3: Puntuación | U3: demanda | V3: 0 | W3: 3 | X3: 6 | Y3: 10
A4: MT-021-01-01 | B4: Aprobación de planos para la construcción, habilitación de fábricas y/o campamentos | C4: 0 | D4: 0 | E4: 20 | F4: 0 | G4: 30 | H4: NO | I4: =IF(H4="SI",5,0) -> 0 | J4: NO | K4: =IF(J4="SI",10,0) -> 0 | L4: NO | M4: =IF(L4="SI",5,0) -> 0 | N4: =SUM(C4:G4,I4,K4,M4) -> 50 | O4: 245.65 | U4: quejas | V4: 0 | W4: 4 | X4: 10
A5: MT-048-01-05 | B5: Suscripción de actas transaccionales para instituciones privadas | C5: 0 | D5: 0 | E5: 10 | F5: 0 | G5: 0 | H5: NO | I5: =IF(H5="SI",5,0) -> 0 | J5: NO | K5: =IF(J5="SI",10,0) -> 0 | L5: NO | M5: =IF(L5="SI",5,0) -> 0 | N5: =SUM(C5:G5,I5,K5,M5) -> 10 | O5: 159.36 | U5: cpa | V5: 5 | W5: 10 | X5: 20
A6: MT-045-03-04 | B6: Aprobación de disolución de organizaciones sociales, fundaciones y microempresas asociativas | C6: 3 | D6: 0 | E6: 10 | F6: 30 | G6: 0 | H6: NO | I6: 0 | J6: NO | K6: 0 | L6: NO | M6: 0 | N6: 43 | O6: 150.9 | U6: tr | V6: 0 | W6: 30
A7: MT-045-01-02 | B7: Registro de la marginación de organizaciones laborales | C7: 3 | D7: 0 | E7: 10 | F7: 30 | G7: 0 | H7: NO | I7: 0 | J7: NO | K7: 0 | L7: NO | M7: 0 | N7: 43 | O7: 150.6 | U7: ca | V7: 0 | W7: 10
A8: MT-047-01-02 | B8: Resolución del pliego de peticiones con sentencia de segunda instancia | C8: 3 | D8: 0 | E8: 10 | F8: 30 | G8: 10 | H8: NO | I8: 0 | J8: NO | K8: 0 | L8: NO | M8: 0 | N8: 53 | O8: 243.48 | V8: SI | W8: NO
A9: MT-045-02-07 | B9: Aprobación de disolución voluntaria de personería jurídica de organizaciones artesanales | C9: 3 | D9: 0 | E9: 10 | F9: 30 | G9: 0 | H9: NO | I9: 0 | J9: NO | K9: 0 | L9: NO | M9: 0 | N9: 43 | O9: 160.43
A10: MT-053-02-01 | B10: Legalización de documentos FEDESOMEC previo al inicio de cursos | C10: 3 | D10: 0 | E10: 10 | F10: 30 | G10: 0 | H10: NO | I10: 0 | J10: NO | K10: 0 | L10: NO | M10: 0 | N10: 43 | O10: 30
A11: MT-045-02-01 | B11: Registro de ingreso, retiro o exclusión de socios de las organizaciones artesanales | C11: 3 | D11: 0 | E11: 10 | F11: 0 | G11: 30 | H11: NO | I11: 0 | J11: NO | K11: 0 | L11: NO | M11: 0 | N11: 43 | O11: 237.18
A12: MT-046-01-02 | B12: Rehabilitación de personas con impedimento laboral en el servicio público a causa de retiro con compensación por retiro voluntario, venta de renuncia o figuras similares | C12: 3 | D12: 0 | E12: 10 | F12: 0 | G12: 0 | H12: NO | I12: 0 | J12: NO | K12: 0 | L12: NO | M12: 0 | N12: 13 | O12: 158.23
A13: MRL-015-01-03 | B13: Refrendación de títulos nuevos y canje de la Federación Ecuatoriana de Operadores y Mecánicos de Equipo Caminero (FEDESOMEC) | C13: 3 | D13: 0 | E13: 10 | F13: 0 | G13: 0 | H13: NO | I13: 0 | J13: NO | K13: 0 | L13: NO | M13: 0 | N13: 13 | O13: 155.25
A14: MT-048-03-02 | B14: Resolución de reclamación colectiva presentada por instituciones privadas por la falta de negociación del contrato colectivo | C14: 3 | D14: 0 | E14: 20 | F14: 30 | G14: 0 | H14: NO | I14: 0 | J14: NO | K14: 0 | L14: NO | M14: 0 | N14: 53 | O14: 212.63
A15: MT-046-01-08 | B15: Rehabilitación de personas con impedimento laboral en el servicio público a causa de interdicción judicial | C15: 3 | D15: 0 | E15: 5 | F15: 0 | G15: 0 | H15: NO | I15: 0 | J15: NO | K15: 0 | L15: NO | M15: 0 | N15: 8 | O15: 153.48
A16: MT-046-01-06 | B16: Rehabilitación de personas con impedimento laboral en el servicio público a causa de compra de renuncia con indemnización. | C16: 3 | D16: 0 | E16: 5 | F16: 0 | G16: 0 | H16: NO | I16: 0 | J16: NO | K16: 0 | L16: NO | M16: 0 | N16: 8 | O16: 157.85
A17: MT-046-01-01 | B17: Rehabilitación de impedidos para laborar en el servicio público por indemnización por supresión de puestos | C17: 3 | D17: 0 | E17: 5 | F17: 0 | G17: 0 | H17: NO | I17: 0 | J17: NO | K17: 0 | L17: NO | M17: 0 | N17: 8 | O17: 266.35
A18: MT-045-02-04 | B18: Registro de directivas de las organizaciones artesanales | C18: 3 | D18: 0 | E18: 20 | F18: 0 | G18: 0 | H18: NO | I18: 0 | J18: NO | K18: 0 | L18: NO | M18: 0 | N18: 23 | O18: 166.56
A19: MT-048-01-06 | B19: Suscripción de actas transaccionales para instituciones públicas para trabajadores bajo Código del Trabajo | C19: 3 | D19: 0 | E19: 10 | F19: 0 | G19: 0 | H19: NO | I19: 0 | J19: NO | K19: 0 | L19: NO | M19: 0 | N19: 13 | O19: 195.38
A20: MT-016-02-02 | B20: Aprobación de extensión de horarios de trabajo (Suplementarias y Extraordinarias) | C20: 3 | D20: 0 | E20: 10 | F20: 30 | G20: 0 | H20: NO | I20: 0 | J20: NO | K20: 0 | L20: NO | M20: 0 | N20: 43 | O20: 100.5
A21: MT-045-01-07 | B21: Aprobación de reformas a estatutos de organizaciones laborales | C21: 3 | D21: 0 | E21: 10 | F21: 30 | G21: 0 | H21: NO | I21: 0 | J21: NO | K21: 0 | L21: NO | M21: 0 | N21: 43 | O21: 158.4
A22: MT-045-03-05 | B22: Aprobación de reformas al estatuto de organizaciones sociales, fundaciones y microempresas asociativas | C22: 3 | D22: 0 | E22: 10 | F22: 30 | G22: 0 | H22: NO | I22: 0 | J22: NO | K22: 0 | L22: NO | M22: 0 | N22: 43 | O22: 152.14
A23: MT-048-03-01 | B23: Resolución de reclamación colectiva presentada por instituciones públicas por la falta de negociación del contrato colectivo bajo Código de Trabajo | C23: 3 | D23: 0 | E23: 20 | F23: 30 | G23: 0 | H23: NO | I23: 0 | J23: NO | K23: 0 | L23: NO | M23: 0 | N23: 53 | O23: 223.8
A24: MRL-015-01-02 | B24: Refrendación de títulos nuevos y canje de Centros de Formación Artesanal y Organizaciones Artesanales | C24: 3 | D24: 0 | E24: 20 | F24: 0 | G24: 0 | H24: NO | I24: 0 | J24: NO | K24: 0 | L24: NO | M24: 0 | N24: 23 | O24: 61.2
A25: MT-045-01-03 | B25: Registro de inclusión y/o exclusión de socios de organizaciones laborales | C25: 3 | D25: 0 | E25: 10 | F25: 30 | G25: 0 | H25: NO | I25: 0 | J25: NO | K25: 0 | L25: NO | M25: 0 | N25: 43 | O25: 166.26
A26: MT-045-02-05 | B26: Aprobación de estatutos y concesión de personería jurídica de organizaciones artesanales | C26: 3 | D26: 0 | E26: 10 | F26: 30 | G26: 0 | H26: NO | I26: 0 | J26: NO | K26: 0 | L26: NO | M26: 0 | N26: 43 | O26: 114.6
A27: MT-045-01-08 | B27: Aprobación de estatutos y personería jurídica en organizaciones laborales | C27: 3 | D27: 0 | E27: 10 | F27: 30 | G27: 0 | H27: NO | I27: 0 | J27: NO | K27: 0 | L27: NO | M27: 0 | N27: 43 | O27: 114.6
A28: MT-048-01-03 | B28: Suscripción de contratos colectivos para instituciones privadas | C28: 3 | D28: 0 | E28: 10 | F28: 30 | G28: 0 | H28: NO | I28: 0 | J28: NO | K28: 0 | L28: NO | M28: 0 | N28: 43 | O28: 162.55
A29: MT-045-02-06 | B29: Aprobación de reformas total y parcial de estatutos de organizaciones artesanales | C29: 3 | D29: 0 | E29: 10 | F29: 30 | G29: 0 | H29: NO | I29: 0 | J29: NO | K29: 0 | L29: NO | M29: 0 | N29: 43 | O29: 114.3
A30: MT-055-01-01 | B30: Aprobación de unificación de utilidades para empleadores del sector privado | C30: 3 | D30: 0 | E30: 10 | F30: 30 | G30: 0 | H30: NO | I30: 0 | J30: NO | K30: 0 | L30: NO | M30: 0 | N30: 43 | O30: 151.8225
A31: MT-053-01-06 | B31: Legalización de documentos previo a la titulación artesanal bajo la modalidad propios derechos y convalidación profesional | C31: 6 | D31: 0 | E31: 10 | F31: 30 | G31: 0 | H31: NO | I31: 0 | J31: NO | K31: 0 | L31: NO | M31: 0 | N31: 46 | O31: 65.25
A32: MT-046-01-03 | B32: Rehabilitación de impedidos para laborar en el servicio público por destitución | C32: 6 | D32: 0 | E32: 5 | F32: 0 | G32: 0 | H32: NO | I32: 0 | J32: NO | K32: 0 | L32: NO | M32: 0 | N32: 11 | O32: 199.35
A33: MT-053-01-05 | B33: Legalización de documentos previo a la titulación artesanal bajo la modalidad practica profesional | C33: 6 | D33: 0 | E33: 20 | F33: 30 | G33: 0 | H33: NO | I33: 0 | J33: NO | K33: 0 | L33: NO | M33: 0 | N33: 56 | O33: 68.25
A34: MT-048-01-04 | B34: Suscripción de contrato colectivo para instituciones públicas para trabajadores bajo Código del Trabajo | C34: 6 | D34: 0 | E34: 20 | F34: 30 | G34: 0 | H34: NO | I34: 0 | J34: NO | K34: 0 | L34: NO | M34: 0 | N34: 56 | O34: 178.15
A35: MT-045-03-02 | B35: Registro de inclusión y/o exclusión de miembros en organizaciones sociales, fundaciones y microempresas asociativas | C35: 6 | D35: 0 | E35: 20 | F35: 30 | G35: 0 | H35: NO | I35: 0 | J35: NO | K35: 0 | L35: NO | M35: 0 | N35: 56 | O35: 150.9
A36: MT-045-03-06 | B36: Aprobación del estatuto y otorgamiento de la personalidad jurídica de organizaciones sociales, fundaciones y microempresas asociativas | C36: 6 | D36: 0 | E36: 20 | F36: 30 | G36: 0 | H36: NO | I36: 0 | J36: NO | K36: 0 | L36: NO | M36: 0 | N36: 56 | O36: 114
A37: MT-001-08-01 | B37: Emisión de copias certificadas de actos administrativos y normativos emitidos por el Ministerio del Trabajo | C37: 6 | D37: 0 | E37: 10 | F37: 30 | G37: 30 | H37: NO | I37: 0 | J37: NO | K37: 0 | L37: NO | M37: 0 | N37: 76 | O37: 311.8375
A38: MT-045-01-01 | B38: Registro de directivas de organizaciones laborales | C38: 6 | D38: 0 | E38: 10 | F38: 30 | G38: 0 | H38: NO | I38: 0 | J38: NO | K38: 0 | L38: NO | M38: 0 | N38: 46 | O38: 113.7
A39: MT-016-02-01 | B39: Aprobación de horarios especiales de trabajo de empresas o instituciones bajo Código del Trabajo | C39: 6 | D39: 4 | E39: 10 | F39: 30 | G39: 0 | H39: NO | I39: 0 | J39: NO | K39: 0 | L39: NO | M39: 0 | N39: 50 | O39: 100.2
A40: MRL-008-02-01 | B40: Terminación de relación laboral a petición del empleador con visto bueno con suspensión de relación laboral | C40: 6 | D40: 0 | E40: 20 | F40: 30 | G40: 0 | H40: NO | I40: 0 | J40: NO | K40: 0 | L40: NO | M40: 0 | N40: 56 | O40: 175.7
A41: MT-047-01-01 | B41: Resolución del pliego de peticiones con sentencia de primera instancia | C41: 6 | D41: 0 | E41: 10 | F41: 30 | G41: 0 | H41: NO | I41: 0 | J41: NO | K41: 0 | L41: NO | M41: 0 | N41: 46 | O41: 201.975
A42: MT-045-03-01 | B42: Registro de directivas para organizaciones sociales, fundaciones y microempresas asociativas | C42: 6 | D42: 0 | E42: 10 | F42: 30 | G42: 0 | H42: NO | I42: 0 | J42: NO | K42: 0 | L42: NO | M42: 0 | N42: 46 | O42: 150.9
A43: MRL-005-01-01 | B43: Audiencia de diálogo social en la solución de conflictos colectivos | C43: 6 | D43: 0 | E43: 10 | F43: 0 | G43: 0 | H43: NO | I43: 0 | J43: NO | K43: 0 | L43: NO | M43: 0 | N43: 16 | O43: 167.8875
A44: MT-034-10-01 | B44: Cálculo del valor correspondiente a la jubilación patronal para trabajadores de código de trabajo en el sector público | C44: 6 | D44: 0 | E44: 10 | F44: 30 | G44: 0 | H44: NO | I44: 0 | J44: NO | K44: 0 | L44: NO | M44: 0 | N44: 46 | O44: 91.8
A45: MRL-008-02-03 | B45: Terminación de relación laboral a petición del empleado con visto bueno | C45: 6 | D45: 0 | E45: 20 | F45: 30 | G45: 0 | H45: NO | I45: 0 | J45: NO | K45: 0 | L45: NO | M45: 0 | N45: 56 | O45: 167.1
A46: MT-049-04-02 | B46: Asistencia en el proceso integral de preselección de personal para instituciones públicas y empresas privadas a través del portal Red Socio Empleo | C46: 6 | D46: 0 | E46: 20 | F46: 30 | G46: 30 | H46: NO | I46: 0 | J46: NO | K46: 0 | L46: NO | M46: 0 | N46: 86 | O46: 462.45
A47: MRL-008-02-02 | B47: Terminación de relación laboral a petición del empleador con visto bueno sin suspensión de relación laboral | C47: 6 | D47: 0 | E47: 20 | F47: 30 | G47: 0 | H47: NO | I47: 0 | J47: NO | K47: 0 | L47: NO | M47: 0 | N47: 56 | O47: 178.85
A48: MT-040-01-01 | B48: Autorización laboral para extranjeros para trabajar en el sector público. | C48: 6 | D48: 0 | E48: 10 | F48: 0 | G48: 0 | H48: NO | I48: 0 | J48: NO | K48: 0 | L48: NO | M48: 0 | N48: 16 | O48: 68.71125
A49: MT-030-03-01 | B49: Atención de denuncias laborables en el sector público | C49: 6 | D49: 4 | E49: 10 | F49: 30 | G49: 30 | H49: NO | I49: 0 | J49: NO | K49: 0 | L49: NO | M49: 0 | N49: 80 | O49: 314.9875
A50: MT-034-10-02 | B50: Cálculo del valor correspondiente a la jubilación patronal para trabajadores del servicio privado | C50: 6 | D50: 0 | E50: 10 | F50: 0 | G50: 0 | H50: NO | I50: 0 | J50: NO | K50: 0 | L50: NO | M50: 0 | N50: 16 | O50: 91.2
A51: MT-005-02-01 | B51: Audiencia de mediación voluntaria para la solución de conflictos individuales de trabajo | C51: 6 | D51: 4 | E51: 10 | F51: 0 | G51: 30 | H51: NO | I51: 0 | J51: NO | K51: 0 | L51: NO | M51: 0 | N51: 50 | O51: 329.025
A52: MRL-012-01-01 | B52: Aprobación de reglamentos internos de trabajo | C52: 6 | D52: 0 | E52: 10 | F52: 0 | G52: 0 | H52: NO | I52: 0 | J52: NO | K52: 0 | L52: NO | M52: 0 | N52: 16 | O52: 18
A53: MT-054-01-01 | B53: Recuperación de claves y modificación de correo electrónico en el Sistema Único de Trabajo | C53: 6 | D53: 0 | E53: 5 | F53: 0 | G53: 0 | H53: NO | I53: 0 | J53: NO | K53: 0 | L53: NO | M53: 0 | N53: 11 | O53: 2.175
A54: MT-021-04-02 | B54: Registro de la Planificación de Capacitación del programa de Prevención de Riesgos Psicosociales | C54: 6 | D54: 0 | E54: 5 | F54: 0 | G54: 0 | H54: NO | I54: 0 | J54: NO | K54: 0 | L54: NO | M54: 0 | N54: 11 | O54: 5.66125
A55: MT-021-01-03 | B55: Registro de Informe anual de actividades del comité paritario | C55: 6 | D55: 0 | E55: 5 | F55: 0 | G55: 30 | H55: NO | I55: 0 | J55: NO | K55: 0 | L55: NO | M55: 0 | N55: 41 | O55: 185.35
A56: MT-021-01-04 | B56: Aprobación de reglamentos de higiene y seguridad en el trabajo | C56: 10 | D56: 4 | E56: 5 | F56: 0 | G56: 30 | H56: NO | I56: 0 | J56: NO | K56: 0 | L56: NO | M56: 0 | N56: 49 | O56: 234.2
A57: MT-046-01-05 | B57: Rehabilitación de personas con impedimento laboral en el servicio público a causa de inhabilidad especial por mora. | C57: 10 | D57: 4 | E57: 5 | F57: 0 | G57: 0 | H57: NO | I57: 0 | J57: NO | K57: 0 | L57: NO | M57: 0 | N57: 19 | O57: 186.23
A58: MT-021-03-02 | B58: Registro de Promoción y Prevención de Salud en el Trabajo | C58: 10 | D58: 4 | E58: 5 | F58: 0 | G58: 0 | H58: NO | I58: 0 | J58: NO | K58: 0 | L58: NO | M58: 0 | N58: 19 | O58: 2.54
A59: MT-049-04-03 | B59: Asistencia en la preselección de personal para instituciones públicas y empresas privadas a través del portal Red Socio Empleo mediante el envío de hojas de vida | C59: 10 | D59: 0 | E59: 10 | F59: 0 | G59: 0 | H59: NO | I59: 0 | J59: NO | K59: 0 | L59: NO | M59: 0 | N59: 20 | O59: 91.2
A60: MT-021-04-01 | B60: Registro de Prevención de Amenazas Naturales y Riesgos Antrópicos | C60: 10 | D60: 0 | E60: 5 | F60: 0 | G60: 0 | H60: NO | I60: 0 | J60: NO | K60: 0 | L60: NO | M60: 0 | N60: 15 | O60: 3.16
A61: N/A | B61: Acceso a la Información Pública del Ministerio de Trabajo | C61: 10 | D61: 4 | E61: 5 | F61: 0 | G61: 0 | H61: NO | I61: 0 | J61: NO | K61: 0 | L61: NO | M61: 0 | N61: 19 | O61: 150.3
A62: MT-049-04-01 | B62: Publicación de ofertas laborales en el portal Red Socio Empleo a través de las cuentas de los empleadores | C62: 10 | D62: 0 | E62: 5 | F62: 0 | G62: 0 | H62: NO | I62: 0 | J62: NO | K62: 0 | L62: NO | M62: 0 | N62: 15 | O62: 68.7
A63: MT-044-04-01 | B63: Registro del pago de multas por sanciones | C63: 10 | D63: 0 | E63: 5 | F63: 0 | G63: 0 | H63: NO | I63: 0 | J63: NO | K63: 0 | L63: NO | M63: 0 | N63: 15 | O63: 12.45
A64: MT-021-01-06 | B64: Registro de programas de prevención de uso y consumo de drogas en espacios laborales y programa de prevención de riesgo psicosocial | C64: 10 | D64: 4 | E64: 5 | F64: 0 | G64: 0 | H64: NO | I64: 0 | J64: NO | K64: 0 | L64: NO | M64: 0 | N64: 19 | O64: 8.1
A65: MT-030-03-02 | B65: Atención de denuncias laborales en el sector privado | C65: 10 | D65: 4 | E65: 10 | F65: 30 | G65: 0 | H65: NO | I65: 0 | J65: NO | K65: 0 | L65: NO | M65: 0 | N65: 54 | O65: 150.3
A66: MT-021-01-02 | B66: Registro de organismos paritarios y sus renovaciones | C66: 10 | D66: 0 | E66: 10 | F66: 0 | G66: 30 | H66: NO | I66: 0 | J66: NO | K66: 0 | L66: NO | M66: 0 | N66: 50 | O66: 180.9
A67: MT-021-01-05 | B67: Registro de la declaración de los riesgos laborales y su plan de acción | C67: 10 | D67: 0 | E67: 10 | F67: 30 | G67: 0 | H67: NO | I67: 0 | J67: NO | K67: 0 | L67: NO | M67: 0 | N67: 50 | O67: 7.58
A68: MT-021-02-03 | B68: Registro de trabajadores capacitados en materia de seguridad y salud en el trabajo. | C68: 10 | D68: 0 | E68: 10 | F68: 30 | G68: 0 | H68: NO | I68: 0 | J68: NO | K68: 0 | L68: NO | M68: 0 | N68: 50 | O68: 1.22
A69: MRL-001-01-08 | B69: Emisión de oficio de validación de no tener impedimento para ejercer cargo público a la fecha | C69: 10 | D69: 0 | E69: 5 | F69: 0 | G69: 0 | H69: NO | I69: =IF(H69="SI",5,0) -> 0 | J69: NO | K69: =IF(J69="SI",10,0) -> 0 | L69: NO | M69: =IF(L69="SI",5,0) -> 0 | N69: =SUM(C69:G69,I69,K69,M69) -> 15 | O69: 30.9
A70: MT-021-02-02 | B70: Registro de capacitaciones realizadas en materia de seguridad y salud en el trabajo | C70: 10 | D70: 4 | E70: 5 | F70: 30 | G70: 0 | H70: NO | I70: 0 | J70: NO | K70: 0 | L70: NO | M70: 0 | N70: 49 | O70: 1.22
A71: MT-044-03-11 | B71: Registro del pago de decimotercera y decimocuarta remuneración para el servicio doméstico | C71: 10 | D71: 0 | E71: 5 | F71: 30 | G71: 0 | H71: NO | I71: 0 | J71: NO | K71: 0 | L71: NO | M71: 0 | N71: 45 | O71: 8.16
A72: MT-021-02-01 | B72: Registro de la planificación de capacitaciones en materia de seguridad y salud en el trabajo | C72: 10 | D72: 4 | E72: 5 | F72: 30 | G72: 0 | H72: NO | I72: 0 | J72: NO | K72: 0 | L72: NO | M72: 0 | N72: 49 | O72: 1.22
A73: MT-021-03-01 | B73: Registro de Vigilancia de la Salud | C73: 10 | D73: 4 | E73: 5 | F73: 30 | G73: 0 | H73: NO | I73: 0 | J73: NO | K73: 0 | L73: NO | M73: 0 | N73: 49 | O73: 1.22
A74: MT-044-03-10 | B74: Registro del pago de Participación de Utilidades | C74: 10 | D74: 0 | E74: 5 | F74: 30 | G74: 0 | H74: NO | I74: 0 | J74: NO | K74: 0 | L74: NO | M74: 0 | N74: 45 | O74: 8.16
A75: MRL-001-01-03 | B75: Emisión de certificado de no tener impedimento para ejercer cargo público para extranjeros no residentes | C75: 10 | D75: 4 | E75: 5 | F75: 30 | G75: 0 | H75: NO | I75: 0 | J75: NO | K75: 0 | L75: NO | M75: 0 | N75: 49 | O75: 93.13
A76: MT-044-03-12 | B76: Registro del pago de decimocuarta remuneración | C76: 10 | D76: 0 | E76: 10 | F76: 0 | G76: 0 | H76: NO | I76: 0 | J76: NO | K76: 0 | L76: NO | M76: 0 | N76: 20 | O76: 8.16
A77: MRL-001-01-09 | B77: Emisión de certificado de relación de dependencia laboral con el sector público | C77: 10 | D77: 4 | E77: 5 | F77: 0 | G77: 0 | H77: NO | I77: 0 | J77: NO | K77: 0 | L77: NO | M77: 0 | N77: 19 | O77: 2.34
A78: MT-044-03-06 | B78: Registro del pago de decimotercera remuneración | C78: 10 | D78: 0 | E78: 5 | F78: 0 | G78: 0 | H78: NO | I78: 0 | J78: NO | K78: 0 | L78: NO | M78: 0 | N78: 15 | O78: 8.16
A79: MT-044-05-01 | B79: Registro de datos de trabajador para la vinculación laboral | C79: 10 | D79: 0 | E79: 5 | F79: 0 | G79: 0 | H79: NO | I79: 0 | J79: NO | K79: 0 | L79: NO | M79: 0 | N79: 15 | O79: 4.72
A80: MT-044-05-02 | B80: Registro de actas de finiquito | C80: 10 | D80: 0 | E80: 5 | F80: 0 | G80: 0 | H80: NO | I80: 0 | J80: NO | K80: 0 | L80: NO | M80: 0 | N80: 15 | O80: 16.86
A81: MRL-001-01-01 | B81: Emisión de certificado de no tener impedimento para ejercer cargo público para ecuatorianos y extranjeros residentes | C81: 10 | D81: 4 | E81: 5 | F81: 0 | G81: 0 | H81: NO | I81: 0 | J81: NO | K81: 0 | L81: NO | M81: 0 | N81: 19 | O81: 3.15
A82: SETEC-014-04-04 | B82: Ampliación por incremento de instructores y/o cambio de coordiador pedagógico bajo las mismas áreas, especialidades, cursos o perfiles | C82: 0 | D82: 0 | E82: 5 | F82: 0 | G82: 0 | H82: NO | I82: =IF(H82="SI",5,0) -> 0 | J82: NO | K82: =IF(J82="SI",10,0) -> 0 | L82: NO | M82: =IF(L82="SI",5,0) -> 0 | N82: 5 | O82: 14.35
A83: SETEC-016-01-04 | B83: Emisión de credenciales de capacitador independiente | C83: 0 | D83: 0 | E83: 5 | F83: 0 | G83: 0 | H83: NO | I83: =IF(H83="SI",5,0) -> 0 | J83: NO | K83: =IF(J83="SI",10,0) -> 0 | L83: NO | M83: =IF(L83="SI",5,0) -> 0 | N83: 5 | O83: 19.75
A84: SETEC-014-05-09 | B84: Solicitud de la renovación de la calificación de Instituciones de Educación Superior como Operadores de Capacitación por capacitación continua y competencias laborales | C84: 0 | D84: 0 | E84: 5 | F84: 0 | G84: 0 | H84: NO | I84: 0 | J84: NO | K84: 0 | L84: NO | M84: 0 | N84: 5 | O84: 10.46
A85: SETEC-015-01-08 | B85: Solicitud de modificación al reconocimiento de organismos evaluadores de la conformidad para brindar servicios de certificación de personas | C85: 0 | D85: 0 | E85: 20 | F85: 0 | G85: 0 | H85: NO | I85: 0 | J85: NO | K85: 0 | L85: NO | M85: 0 | N85: 20 | O85: 44.44
A86: SETEC-014-05-08 | B86: Solicitud de renovación de la calificación de Instituciones de Educación Superior como Operadores de Capacitación por competencias laborales | C86: 0 | D86: 0 | E86: 5 | F86: 0 | G86: 0 | H86: NO | I86: 0 | J86: NO | K86: 0 | L86: NO | M86: 0 | N86: 5 | O86: 10.46
A87: SETEC-014-05-04 | B87: Solicitud de renovación de la calificación de Instituciones Públicas como Operadores de Capacitación Continua | C87: 0 | D87: 0 | E87: 5 | F87: 0 | G87: 0 | H87: NO | I87: 0 | J87: NO | K87: 0 | L87: NO | M87: 0 | N87: 5 | O87: 10.46
A88: SETEC-014-05-05 | B88: Solicitud de renovación de la calificación de Instituciones Públicas como Operadores de Capacitación por competencias laborales | C88: 0 | D88: 0 | E88: 5 | F88: 0 | G88: 0 | H88: NO | I88: 0 | J88: NO | K88: 0 | L88: NO | M88: 0 | N88: 5 | O88: 10.46
A89: SETEC-014-05-06 | B89: Solicitud de renovación de la calificación deInstituciones Públicas como Operadores de Capacitación por capacitación continua y competencias laborales | C89: 0 | D89: 0 | E89: 5 | F89: 0 | G89: 0 | H89: NO | I89: 0 | J89: NO | K89: 0 | L89: NO | M89: 0 | N89: 5 | O89: 10.46
A90: SETEC-015-01-01 | B90: Reconocimiento de personas naturales como organismos evaluadores de la conformidad para brindar servicios de certificación de personas | C90: 3 | D90: 0 | E90: 20 | F90: 0 | G90: 0 | H90: NO | I90: 0 | J90: NO | K90: 0 | L90: NO | M90: 0 | N90: 23 | O90: 149.11
A91: SETEC-014-03-03 | B91: Solicitud de modificación de la calificación de Instituciones de Educación Superior como Operadores de Capacitación | C91: 3 | D91: 0 | E91: 10 | F91: 0 | G91: 0 | H91: NO | I91: 0 | J91: NO | K91: 0 | L91: NO | M91: 0 | N91: 13 | O91: 47.08
A92: SETEC-014-05-07 | B92: Solicitud de renovación de la calificación de Instituciones de Educación Superior como Operadores de Capacitación como Operadores de Capacitación Continua | C92: 3 | D92: 0 | E92: 5 | F92: 0 | G92: 0 | H92: NO | I92: 0 | J92: NO | K92: 0 | L92: NO | M92: 0 | N92: 8 | O92: 17.96
A93: SETEC-014-04-02 | B93: Ampliación por nuevos cursos e instructores por competencias laborales | C93: 3 | D93: 0 | E93: 10 | F93: 0 | G93: 0 | H93: NO | I93: 0 | J93: NO | K93: 0 | L93: NO | M93: 0 | N93: 13 | O93: 69.96
A94: SETEC-014-02-08 | B94: Calificación de Instituciones de Educación Superior como Operadores de Capacitación por competencias laborales | C94: 3 | D94: 0 | E94: 10 | F94: 0 | G94: 0 | H94: NO | I94: 0 | J94: NO | K94: 0 | L94: NO | M94: 0 | N94: 13 | O94: 91.39
A95: SETEC-014-02-05 | B95: Calificación de Instituciones Públicas como Operadores de Capacitación por competencias laborales | C95: 3 | D95: 0 | E95: 10 | F95: 0 | G95: 0 | H95: NO | I95: 0 | J95: NO | K95: 0 | L95: NO | M95: 0 | N95: 13 | O95: 78.97
A96: SETEC-015-01-06 | B96: Renovación al reconocimiento de organismos evaluadores de la conformidad de Instituciones de Educación Superior para brindar servicios de certificación de personas | C96: 3 | D96: 0 | E96: 10 | F96: 0 | G96: 0 | H96: NO | I96: 0 | J96: NO | K96: 0 | L96: NO | M96: 0 | N96: 13 | O96: 149.11
A97: SETEC-015-01-04 | B97: Renovación al reconocimiento de organismos evaluadores de la conformidad de personas naturales para brindar servicios de certificación de personas | C97: 3 | D97: 0 | E97: 10 | F97: 0 | G97: 0 | H97: NO | I97: 0 | J97: NO | K97: 0 | L97: NO | M97: 0 | N97: 13 | O97: 149.11
A98: SETEC-014-03-02 | B98: Solicitud de modificación de la calificación de Instituciones Públicas como Operadores de Capacitación | C98: 3 | D98: 0 | E98: 10 | F98: 0 | G98: 0 | H98: NO | I98: 0 | J98: NO | K98: 0 | L98: NO | M98: 0 | N98: 13 | O98: 47.08
A99: SETEC-014-05-02 | B99: Solicitud de renovación de la calificación de Personas Naturales, Personas Jurídicas y Empresas Públicas como Operadores de Capacitación por competencias laborales | C99: 3 | D99: 0 | E99: 5 | F99: 0 | G99: 0 | H99: NO | I99: 0 | J99: NO | K99: 0 | L99: NO | M99: 0 | N99: 8 | O99: 10.46
A100: SETEC-015-01-02 | B100: Reconocimiento de organismos evaluadores de la conformidad de Instituciones de Educación Superior para brindar servicios de certificación de personas | C100: 3 | D100: 0 | E100: 20 | F100: 30 | G100: 0 | H100: NO | I100: 0 | J100: NO | K100: 0 | L100: NO | M100: 0 | N100: 53 | O100: 149.11
A101: SETEC-017-01-02 | B101: Solicitud de auditoría al cumplimiento de los estándares de calificación | C101: 3 | D101: 0 | E101: 20 | F101: 0 | G101: 0 | H101: NO | I101: 0 | J101: NO | K101: 0 | L101: NO | M101: 0 | N101: 23 | O101: 88.3
A102: SETEC-017-02-02 | B102: Solicitud de auditoría al cumplimiento del sistema de gestión de certificación de personas | C102: 3 | D102: 0 | E102: 20 | F102: 0 | G102: 0 | H102: NO | I102: 0 | J102: NO | K102: 0 | L102: NO | M102: 0 | N102: 23 | O102: 88.3
A103: SETEC-017-01-03 | B103: Quejas y sugerencias sobre la prestacción de servicios de capacitación y certificación por parte de terceros | C103: 3 | D103: 10 | E103: 10 | F103: 0 | G103: 0 | H103: NO | I103: 0 | J103: NO | K103: 0 | L103: NO | M103: 0 | N103: 23 | O103: 54.65
A104: SETEC-014-02-02 | B104: Calificación de Personas Naturales, Personas Jurídicas y Empresas Públicas como Operadores de Capacitación por competencias laborales | C104: 6 | D104: 0 | E104: 10 | F104: 0 | G104: 0 | H104: NO | I104: 0 | J104: NO | K104: 0 | L104: NO | M104: 0 | N104: 16 | O104: 220.38
A105: SETEC-014-02-04 | B105: Calificación de Instituciones Públicas como Operadores de Capacitación Continua | C105: 6 | D105: 0 | E105: 10 | F105: 0 | G105: 0 | H105: NO | I105: 0 | J105: NO | K105: 0 | L105: NO | M105: 0 | N105: 16 | O105: 79.1
A106: SETEC-010-01-02 | B106: Elaborar o actualizar perfiles ocupacionales para capacitación y certificación de personas por competancias laborales | C106: 6 | D106: 0 | E106: 20 | F106: 0 | G106: 0 | H106: NO | I106: 0 | J106: NO | K106: 0 | L106: NO | M106: 0 | N106: 26 | O106: 483.8
A107: SETEC-015-01-03 | B107: Reconocimiento de organismos evaluadores de la conformidad de personas jurídicas para brindar servicios de certificación de personas | C107: 6 | D107: 0 | E107: 20 | F107: 0 | G107: 0 | H107: NO | I107: 0 | J107: NO | K107: 0 | L107: NO | M107: 0 | N107: 26 | O107: 149.11
A108: SETEC-014-03-01 | B108: Solicitud de modificación de la calificación de Personas Naturales, Personas Jurídicas y Empresas Públicas como Operadores de Capacitación | C108: 6 | D108: 0 | E108: 10 | F108: 0 | G108: 0 | H108: NO | I108: 0 | J108: NO | K108: 0 | L108: NO | M108: 0 | N108: 16 | O108: 160.66
A109: SETEC-015-01-05 | B109: Renovación al reconocimiento de organismos evaluadores de la conformidad de personas jurídicas para brindar servicios de certificación de personas | C109: 6 | D109: 0 | E109: 10 | F109: 0 | G109: 0 | H109: NO | I109: 0 | J109: NO | K109: 0 | L109: NO | M109: 0 | N109: 16 | O109: 149.11
A110: SETEC-014-02-07 | B110: Calificación de Instituciones de Educación Superior como Operadores de Capacitación Continua | C110: 6 | D110: 0 | E110: 10 | F110: 0 | G110: 0 | H110: NO | I110: 0 | J110: NO | K110: 0 | L110: NO | M110: 0 | N110: 16 | O110: 74.44
A111: SETEC-014-05-01 | B111: Solicitud de renovación de la calificación de Personas Naturales, Personas Jurídicas y Empresas Públicas como Operadores de Capacitación de Capacitación Continua | C111: 6 | D111: 0 | E111: 5 | F111: 0 | G111: 0 | H111: NO | I111: 0 | J111: NO | K111: 0 | L111: NO | M111: 0 | N111: 11 | O111: 10.46
A112: SETEC-014-02-09 | B112: Calificación de Instituciones de Educación Superior como Operadores de Capacitación por capacitación continua y competencias laborales | C112: 6 | D112: 0 | E112: 20 | F112: 0 | G112: 0 | H112: NO | I112: 0 | J112: NO | K112: 0 | L112: NO | M112: 0 | N112: 26 | O112: 91.39
A113: SETEC-016-01-02 | B113: Renovación de la calificación como capacitador independiente | C113: 6 | D113: 0 | E113: 20 | F113: 0 | G113: 0 | H113: NO | I113: 0 | J113: NO | K113: 0 | L113: NO | M113: 0 | N113: 26 | O113: 66.18
A114: SETEC-014-05-03 | B114: Solicitud de renovación de la calificación de Personas Naturales, Personas Jurídicas y Empresas Públicas como Operadores de Capacitación por capacitación continua y competencias laborales | C114: 6 | D114: 0 | E114: 5 | F114: 0 | G114: 0 | H114: NO | I114: 0 | J114: NO | K114: 0 | L114: NO | M114: 0 | N114: 11 | O114: 10.46
A115: SETEC-014-02-06 | B115: Calificación de Instituciones Públicas como Operadores de Capacitación por capacitación continua y competencias laborales | C115: 6 | D115: 0 | E115: 20 | F115: 0 | G115: 0 | H115: NO | I115: 0 | J115: NO | K115: 0 | L115: NO | M115: 0 | N115: 26 | O115: 93.02
A116: SETEC-017-03-02 | B116: Quejas y sugerencias sobre el mal uso de marca SETEC por parte de terceros | C116: 6 | D116: 0 | E116: 20 | F116: 0 | G116: 0 | H116: NO | I116: 0 | J116: NO | K116: 0 | L116: NO | M116: 0 | N116: 26 | O116: 17.98
A117: SETEC-010-02-01 | B117: Elaboración de esquemas para la certificación de personas bajo competencias laborales | C117: 6 | D117: 0 | E117: 20 | F117: 0 | G117: 0 | H117: NO | I117: 0 | J117: NO | K117: 0 | L117: NO | M117: 0 | N117: 26 | O117: 393.8
A118: SETEC-010-03-01 | B118: Elaborar instrumentos para la certificación de personas bajo competencias laborales | C118: 6 | D118: 0 | E118: 20 | F118: 0 | G118: 0 | H118: NO | I118: 0 | J118: NO | K118: 0 | L118: NO | M118: 0 | N118: 26 | O118: 397.55
A119: SETEC-014-04-03 | B119: Ampliación por nuevos cursos e instructores por capacitación continua y competencias laborales | C119: 10 | D119: 0 | E119: 10 | F119: 0 | G119: 0 | H119: NO | I119: 0 | J119: NO | K119: 0 | L119: NO | M119: 0 | N119: 20 | O119: 78.13
A120: SETEC-017-02-01 | B120: Solicitud de asesoramiento técnico para el proceso de auditoría al sistema de gestión de certificación de personas | C120: 10 | D120: 0 | E120: 5 | F120: 0 | G120: 0 | H120: NO | I120: 0 | J120: NO | K120: 0 | L120: NO | M120: 0 | N120: 15 | O120: 28.3
A121: SETEC-017-01-01 | B121: Solicitud de asesoramiento técnico para el proceso de auditoría al cumplimiento de los estándares de calificación | C121: 10 | D121: 0 | E121: 5 | F121: 0 | G121: 0 | H121: NO | I121: 0 | J121: NO | K121: 0 | L121: NO | M121: 0 | N121: 15 | O121: 28.3
A122: SETEC-014-04-01 | B122: Ampliación por nuevos cursos e instructores por capacitación continua | C122: 10 | D122: 0 | E122: 10 | F122: 0 | G122: 0 | H122: NO | I122: 0 | J122: NO | K122: 0 | L122: NO | M122: 0 | N122: 20 | O122: 175.33
A123: SETEC-012-01-01 | B123: Asesoramiento metodológico en la elaboración de diseños y estructuras curriculares | C123: 10 | D123: 0 | E123: 20 | F123: 0 | G123: 0 | H123: NO | I123: 0 | J123: NO | K123: 0 | L123: NO | M123: 0 | N123: 30 | O123: 58.3
A124: SETEC-016-01-03 | B124: Ampliación de la calificación como capacitador independiente | C124: 10 | D124: 0 | E124: 20 | F124: 30 | G124: 30 | H124: NO | I124: 0 | J124: NO | K124: 0 | L124: NO | M124: 0 | N124: 90 | O124: 198.9
A125: SETEC-015-01-09 | B125: Asistencia técnica en el proceso de reconocimiento de organismos certificadores de personas | C125: 10 | D125: 0 | E125: 5 | F125: 0 | G125: 0 | H125: NO | I125: 0 | J125: NO | K125: 0 | L125: NO | M125: 0 | N125: 15 | O125: 23.43
A126: SETEC-015-01-07 | B126: Ampliación al reconocimiento de organismos evaluadores de la conformidad para brindar servicios de certificación de personas | C126: 10 | D126: 0 | E126: 20 | F126: 0 | G126: 0 | H126: NO | I126: 0 | J126: NO | K126: 0 | L126: NO | M126: 0 | N126: 30 | O126: 74.83
A127: SETEC-014-02-01 | B127: Calificación de Personas Naturales, Personas Jurídicas y Empresas Públicas como Operadores de Capacitación de Capacitación Continua | C127: 10 | D127: 0 | E127: 10 | F127: 0 | G127: 0 | H127: NO | I127: 0 | J127: NO | K127: 0 | L127: NO | M127: 0 | N127: 20 | O127: 212.88
A128: SETEC-014-02-03 | B128: Calificación de Personas Naturales, Personas Jurídicas y Empresas Públicas como Operadores de Capacitación continua y competencias laborales | C128: 10 | D128: 0 | E128: 10 | F128: 0 | G128: 0 | H128: NO | I128: 0 | J128: NO | K128: 0 | L128: NO | M128: 0 | N128: 20 | O128: 213.8
A129: SETEC-016-01-01 | B129: Calificación como capacitador independiente | C129: 10 | D129: 0 | E129: 20 | F129: 30 | G129: 30 | H129: NO | I129: 0 | J129: NO | K129: 0 | L129: NO | M129: 0 | N129: 90 | O129: 195.75
A130: SETEC-017-03-01 | B130: Solicitud de aprobación de productos comunicacionales | C130: 10 | D130: 0 | E130: 5 | F130: 0 | G130: 0 | H130: NO | I130: 0 | J130: NO | K130: 0 | L130: NO | M130: 0 | N130: 15 | O130: 6.55
A131: SETEC-016-01-05 | B131: Asistencia técnica en el proceso de calificación como capacitador independiente | C131: 10 | D131: 0 | E131: 5 | F131: 0 | G131: 0 | H131: NO | I131: 0 | J131: NO | K131: 0 | L131: NO | M131: 0 | N131: 15 | O131: 6.1
A132: SETEC-017-03-04 | B132: Solicitud de sellado de certificados emitidos por los operadores de capacitación de capacitación y organismos evaluadores de la conformidad | C132: 10 | D132: 0 | E132: 5 | F132: 0 | G132: 0 | H132: NO | I132: 0 | J132: NO | K132: 0 | L132: NO | M132: 0 | N132: 15 | O132: 17.6
A133: SETEC-009-02-01 | B133: Consulta de análisis y estudios sobre capacitación y certificación de personas | C133: 10 | D133: 0 | E133: 20 | F133: 0 | G133: 0 | H133: NO | I133: 0 | J133: NO | K133: 0 | L133: NO | M133: 0 | N133: =SUM(C133:G133,I133,K133,M133) -> 30 | O133: 39.3
